Cogmind - Beta 15 @@@ ROGUE MODE // 2025.09.26 @ 17:44:00 Player: cingulata Result: Destroyed by Y-72 Warden with Quantum Rifle Performance ------------- Evolutions (9) 4500 Regions Visited (33) 6600 Robots Destroyed (509) 2545 Value Destroyed (25104) 25104 Prototype IDs (61) 1220 Alien Tech Used (0) 0 Bonus (16380) 16380 TOTAL SCORE: 56349 Bonus ------- High Alert Combat Kills 5559 Follower Combat Kills 4535 Entered Garrisons 1400 Used RIF Installer 5000 Entered DSFs 500 Aligned with FarCom 300 Built Enhanced Grunts 300 Met R17 at Cetus 500 Met R17 at Research 2000 Friendly Fire -3714 Cogmind --------- Core Integrity 0/1600 Matter 300/300 Energy 57/100 System Corruption 37% Temperature Cool (9) Movement Core (100) Ox1 Location -1/Access Parts ------- > --- POWER (3) -------- (None) > --- PROPULSION (6) --- (None) > --- UTILITY (13) ----- Advanced Signal Interpreter Advanced Target Analyzer Graphene Brace Relay Coupler [Grunt] (7) > --- WEAPON (3) ------- Phasing Sabre > --- INVENTORY (5) ---- Myomer Leg Biometal Leg Advanced Signal Interpreter Graphene Brace KE Penetrator Peak State ------------ > --- POWER ------------ Quantum Reactor Quantum Reactor Quantum Reactor > --- PROPULSION ------- Biometal Heavy Treads Biometal Heavy Treads Armored Huge Wheel > --- UTILITY ---------- Advanced Cryofiber Web Advanced Cooling System Advanced Coolant Injector Huge Storage Unit Advanced Signal Interpreter Advanced Terrain Scanner Improved Target Analyzer Advanced Target Analyzer Core Analyzer Quantum Capacitor Graphene Brace Relay Coupler [Grunt] > --- WEAPON ----------- Enhanced Nova Cannon Compact Linear Accelerator Advanced Remote Datajack > --- INVENTORY -------- Quantum Reactor Quantum Reactor Biometal Medium Treads Armored Huge Wheel Improved Matter Compressor Advanced Signal Interpreter Advanced Point Defense System Relay Coupler [NC] Relay Coupler [NC] Relay Coupler [Grunt] Long-range Tractor Beam HERF Cannon Cooled Plasma Cannon Enhanced Nova Cannon Coil Gun Hypervelocity Railgun Linear Accelerator Enhanced Hardcell Cannon Mini Smartbomb Launcher Phasing Sabre [Rating: 182] Favorites ----------- Power Quantum Reactor Engine Heavy Ion Engine Power Core Cooled Fission Core Reactor Quantum Reactor Propulsion Aluminum Leg Treads Improved Heavy Treads Leg Aluminum Leg Wheel Armored Huge Wheel Utility Core Analyzer Device Advanced Transmission Jammer Storage High-capacity Storage Unit Processor Core Analyzer Hackware Relay Coupler [Grunt] Protection Layered Medium Armor Plating Weapon Gatling Laser Energy Gun Gatling Laser Energy Cannon Enhanced Nova Cannon Ballistic Gun Enhanced Autogun Ballistic Cannon Light Cannon Launcher Rocket Launcher Special Weapon Advanced Remote Datajack Impact Weapon Powered Hammer Slashing Weapon Phasing Sabre Build | -11 -10 -10 -9 -9 -9 -8 -8 -8 -8 -8 -8 -8 -7 -7 -7 -7 -7 -7 -6 -6 -6 -6 -6 -5 -5 -5 -5 -4 -4 -3 -2 -2 -1 ------- Run | Yrd Mat Min Mat Min Exi Min Mat Gar Mat Gar Mat Gar Fac Was Fac Gar Fac Gar Fac Ext Cet Arc Hub Fac Was Fac Gar Fac Gar Res Res DSF Acc Slots Evolved 18 | . . . 2 . . . 2 . . . . . 2 . . . . . 2 . . . . 2 . . . 2 . 2 2 . 2 Power 2 | . . . . . . . . . . . . . . . . . . . . . . . . 1 . . . . . 1 . . . Propulsion 4 | . . . 1 . . . 1 . . . . . . . . . . . . . . . . . . . . . . . 2 . . Utility 11 | . . . 1 . . . . . . . . . 2 . . . . . 2 . . . . 1 . . . 2 . 1 . . 2 Weapon 1 | . . . . . . . 1 . . . . . . . . . . . . . . . . . . . . . . . . . . Parts Attached 344 | 1 14 6 27 3 . . 25 9 6 22 8 12 5 6 5 6 1 9 22 11 10 7 . 3 2 3 14 14 17 22 1 9 44 Power 37 | . 2 1 2 1 . . 1 2 1 4 2 1 . 1 . . . . 3 . 2 . . . . . 2 . 2 2 . 3 5 Engine 13 | . 2 1 2 1 . . 1 1 1 . 2 1 . . . . . . 1 . . . . . . . . . . . . . . Core 8 | . . . . . . . . 1 . 4 . . . . . . . . 1 . 1 . . . . . 1 . . . . . . Reactor 16 | . . . . . . . . . . . . . . 1 . . . . 1 . 1 . . . . . 1 . 2 2 . 3 5 Propulsion 75 | . 4 1 12 1 . . 6 2 2 13 1 5 1 2 . . . 2 . 2 1 . . . . 1 3 . 2 . 1 2 11 Treads 17 | . . . . . . . . . . . . . . 2 . . . 2 . 2 1 . . . . 1 3 . 2 . 1 . 3 Leg 52 | . 4 1 12 1 . . 6 2 2 13 1 5 1 . . . . . . . . . . . . . . . . . . . 4 Wheel 6 | . . . . . . . . . . . . . . . . . . . . . . . . . . . . . . . . 2 4 Hover . | . . . . . . . . . . . . . . . . . . . . . . . . . . . . . . . . . . Flight . | . . . . . . . . . . . . . . . . . . . . . . . . . . . . . . . . . . Utility 144 | 1 3 2 5 1 . . 8 2 1 2 2 3 3 3 2 6 1 6 12 5 6 7 . 1 1 2 5 5 10 16 . 3 20 Device 54 | 1 . 1 . 1 . . 3 . 1 . . . 1 2 1 2 . 4 6 1 1 4 . . . 1 . 2 3 8 . 1 10 Storage 7 | . 1 . 2 . . . . . . . . 1 1 . . . . . . 1 . . . . . . . . . 1 . . . Processor 13 | . . . . . . . . . . 1 . . . . . 2 . . . . . . . 1 . 1 . 2 2 2 . . 2 Hackware 36 | . . . . . . . . 1 . . 2 1 . 1 1 . 1 2 3 . . 2 . . 1 . 4 1 5 4 . 1 6 Protection 34 | . 2 1 3 . . . 5 1 . 1 . 1 1 . . 2 . . 3 3 5 1 . . . . 1 . . 1 . 1 2 Artifact . | . . . . . . . . . . . . . . . . . . . . . . . . . . . . . . . . . . Weapon 88 | . 5 2 8 . . . 10 3 2 3 3 3 1 . 3 . . 1 7 4 1 . . 2 1 . 4 9 3 4 . 1 8 Energy Gun 14 | . . . . . . . 1 1 1 . . 3 . . 2 . . . 2 . . . . . . . . . 1 1 . . 2 Energy Cannon 12 | . . . . . . . . . . 1 2 . . . . . . . 1 2 . . . . . . . 3 1 . . . 2 Ballistic Gun 24 | . . . 6 . . . 7 . 1 1 . . . . . . . . . . 1 . . 1 . . 2 2 1 1 . . 1 Ballistic Cannon 11 | . 3 . . . . . . . . . . . . . . . . 1 . . . . . . . . 2 1 . 2 . . 2 Launcher 10 | . 1 1 2 . . . 1 2 . . . . . . . . . . 1 1 . . . . . . . 1 . . . . . Special Weapon 10 | . 1 . . . . . . . . . 1 . 1 . . . . . 2 . . . . 1 1 . . 1 . . . 1 1 Impact Weapon 4 | . . 1 . . . . 1 . . 1 . . . . . . . . 1 . . . . . . . . . . . . . . Slashing Weapon 3 | . . . . . . . . . . . . . . . 1 . . . . 1 . . . . . . . 1 . . . . . Piercing Weapon . | . . . . . . . . . . . . . . . . . . . . . . . . . . . . . . . . . . Special Melee Weapon . | . . . . . . . . . . . . . . . . . . . . . . . . . . . . . . . . . . Unidentified Prototypes 24 | . . 1 2 . . . 1 . 1 . . . . . . 1 . . 9 1 5 . . . . 1 . 1 . 1 . . . Corrupted Parts 9 | . . . . . . . . . . . . 2 . . . . . . 1 . 2 . . 1 . 1 1 . 1 . . . . System Corruption 52 | . . . . . . . . . . . . 4 . . . . . . 10 . 5 . . 10 . 9 10 . 4 . . . . Parts Lost 97 | . . . . . . 1 1 . . 4 . 8 . . . . . 1 3 4 1 . 1 . . 1 1 . 10 1 . 2 58 Power 12 | . . . . . . . . . . . . 1 . . . . . . . . . . . . . . 1 . 2 . . 1 7 Propulsion 26 | . . . . . . . 1 . . 1 . 4 . . . . . . . 2 . . . . . 1 . . 2 . . . 15 Utility 33 | . . . . . . 1 . . . 2 . . . . . . . . 3 . . . 1 . . . . . 4 . . 1 21 Weapon 26 | . . . . . . . . . . 1 . 3 . . . . . 1 . 2 1 . . . . . . . 2 1 . . 15 Highest Loss Streak 18 | . . . . . . 1 1 . . 1 . 7 . . . . . 1 3 2 1 . 1 . . 1 1 . 7 1 . 1 18 To Critical Strikes 1 | . . . . . . . . . . . . . . . . . . . . . . . . . . . . . . . . . 1 Average Backups 16 | 6 9 10 9 10 11 14 14 14 15 14 14 14 14 17 17 17 17 17 16 16 18 17 17 17 18 17 18 17 17 20 24 23 21 Power 1 | 1 1 1 1 1 1 1 1 1 1 1 1 . . 1 1 1 1 1 1 1 1 1 2 1 1 1 1 1 2 . . . 1 Propulsion 1 | 4 1 1 1 2 2 2 1 1 1 1 2 1 1 2 2 2 2 2 2 . 1 2 2 2 2 1 1 2 1 1 . 1 1 Utility 7 | . 4 4 3 4 5 7 8 7 7 6 6 6 5 6 7 7 8 9 7 9 8 8 7 7 8 7 8 4 4 8 14 10 8 Weapon 5 | 1 3 4 4 3 3 3 4 5 5 5 4 5 6 6 6 6 5 4 4 4 6 5 5 5 6 5 6 7 9 9 9 9 8 Tool/Special . | . . . . . . . . . . . . . . . . . . . . . . . . . . . . . . . . . . Unused Backups 99 | 6 12 . 6 1 . . 13 3 . 4 . 5 1 2 2 . . 3 6 5 3 . . 2 . 1 2 . 6 2 . 3 11 Power 18 | 1 1 . 1 . . . . 1 . . . 1 . 2 1 . . . 5 2 . . . . . . . . 2 . . . 1 Propulsion 25 | 2 5 . 1 . . . 4 1 . 2 . . . . . . . 1 . . 1 . . 1 . . 1 . 1 2 . 1 2 Utility 34 | 1 3 . 1 1 . . 7 1 . 1 . 3 1 . . . . 1 . 3 . . . . . 1 1 . 2 . . 2 5 Weapon 18 | 2 3 . 3 . . . 2 . . 1 . 1 . . 1 . . . . . 2 . . 1 . . . . 1 . . . 1 Tool/Special 4 | . . . . . . . . . . . . . . . . . . 1 1 . . . . . . . . . . . . . 2 Average Slot Usage (%) 91 | . 99 99 99 100 100 100 99 100 100 99 100 98 99 88 83 83 83 83 85 84 84 84 85 85 88 84 87 88 88 89 86 79 80 Engine 3 | . 14 14 11 11 11 11 9 7 3 2 5 9 7 1 . . . . . . . . . . . . . . . . . . . Core 1 | . . . . . . . . 1 5 6 3 . . . . . . . . 6 5 6 6 5 5 5 4 5 1 . . . . Reactor 3 | . . . . . . . . . . . . . . 5 7 7 7 7 5 . . . . 5 5 5 5 5 8 13 13 11 10 Treads 6 | . . . . . . . . . . . . . . 10 15 15 15 15 12 13 12 13 13 11 11 7 11 10 9 9 13 8 6 Leg 14 | . 28 28 32 33 33 33 36 36 36 35 36 35 30 8 . . . . . . . . . . . . . . . . . . 1 Device 11 | . 11 13 6 10 10 6 2 1 . . . 5 7 11 9 7 7 7 13 20 21 17 21 23 17 21 18 23 24 22 13 10 18 Storage 7 | . 14 14 11 11 11 11 9 9 9 9 9 9 7 7 7 7 7 7 6 6 6 6 6 5 5 5 5 5 5 4 4 4 3 Processor 5 | . . . . . . . . . . 8 9 9 7 7 7 13 15 15 6 . . . . 1 5 5 5 5 11 14 17 17 14 Hackware 3 | . . . . . . . . . . . 4 . . 2 5 . 5 1 8 3 . . . . 4 1 5 7 7 8 13 6 10 Protection 9 | . 2 . 14 11 11 15 15 15 17 8 4 3 14 7 7 8 1 5 10 15 18 20 18 11 11 11 9 10 2 . . 2 . Energy Gun 4 | . . . . . . . . . . . . 9 15 8 13 20 17 19 17 14 . 2 6 1 5 5 . . . . . . . Energy Cannon 1 | . . . . . . . . . . . 3 3 . 5 1 . 3 . 1 2 6 6 6 3 . 3 . 4 . 2 4 4 3 Ballistic Gun 9 | . . . 18 20 21 21 22 24 26 24 22 6 . . . . . . . . 4 6 5 6 5 2 13 7 11 5 4 2 . Ballistic Cannon 2 | . 26 27 1 . . . . . . . . . . . . . . . . . . . . . . . . . 1 1 4 4 1 Impact Weapon 1 | . . . 1 . . . 4 1 . 2 . 6 6 2 5 2 . 1 . . . . . . . . . . . . . . . Peak Build Rating 182 | 7 9 17 21 22 23 23 41 45 44 49 43 43 51 70 73 72 72 77 105 101 121 122 124 140 138 142 142 147 146 156 163 168 182 Average Rating 76 | 6 7 8 17 19 20 21 33 39 40 40 42 40 49 63 68 67 68 73 86 93 108 117 121 134 133 126 131 140 131 148 163 158 153 On Entrance 76 | 6 7 9 9 20 20 22 23 36 40 44 43 42 41 50 70 68 69 68 74 97 91 121 122 124 138 133 142 125 143 128 156 163 159 Naked Turns . | . . . . . . . . . . . . . . . . . . . . . . . . . . . . . . . . . . Heaviest Build 195 | 12 24 24 39 30 41 41 55 55 55 55 51 55 68 79 79 82 78 78 95 102 104 107 107 118 110 119 120 133 125 161 156 172 195 Greatest Support 185 | 20 20 20 33 33 33 33 51 60 62 62 60 60 57 140 140 140 140 150 150 150 155 155 155 155 155 160 160 155 155 150 185 185 155 Greatest Overweight (x) 44 | . 1 1 1 . 1 1 1 1 . . . 1 1 1 . . 1 . 1 . 1 . . . . 1 . . 1 1 . 6 44 Average Overweight (x) . | . . 1 . . . 1 . . . . . . . . . . . . . . . . . . . . . . . . . 4 4 Largest Inventory Capacity 25 | 8 10 10 15 10 15 15 15 15 15 15 15 15 20 20 20 20 20 20 20 20 20 20 20 20 20 20 20 20 20 25 25 25 25 Average Capacity 17 | 8 9 10 10 10 13 15 15 15 15 15 15 15 16 18 20 20 20 20 20 20 20 20 20 20 20 20 20 20 20 21 25 25 24 Most Carried 25 | 8 10 10 10 10 14 15 15 15 15 15 15 15 16 20 20 20 20 20 20 20 20 20 20 20 20 20 20 20 20 25 24 25 25 Average Carried 16 | 6 9 10 9 10 11 14 14 14 14 14 14 14 14 18 19 19 19 19 18 17 19 19 19 19 20 19 19 19 18 20 24 23 21 Final Capacity 25 | 8 10 10 10 10 15 15 15 15 15 15 15 15 15 20 20 20 20 20 20 20 20 20 20 20 20 20 20 20 20 25 25 25 25 Final Carried 25 | 8 10 10 10 10 14 15 15 15 15 15 15 15 15 20 20 20 19 20 20 20 20 20 19 20 20 18 20 20 20 25 24 25 25 Class Distribution -------------------- 22% | Scavenger-Mutant 18% | Scavenger-Tank 15% | Mutant 11% | Tank 7% | Scavenger-Skirmisher 5% | Scavenger-Gunner 5% | Commander-Tank 5% | Botlord-Gunner Dominant Class ---------------- Mutant | -10/Materials Mutant | -10/Mines Scavenger-Mutant | -9/Materials Scavenger-Mutant | -9/Mines Scavenger-Mutant | -9/Exiles Scavenger-Mutant | -8/Mines Mutant | -8/Materials Tank | -8/Garrison Tank | -8/Materials Scavenger-Skirmisher | -8/Garrison Scavenger-Skirmisher | -8/Materials Scavenger-Mutant | -8/Garrison Scavenger-Mutant | -7/Factory Scavenger-Mutant | -7/Waste Scavenger-Mutant | -7/Factory Scavenger-Tank | -7/Garrison Scavenger-Gunner | -7/Factory Scavenger-Tank | -7/Garrison Scavenger-Tank | -6/Factory Tank | -6/Extension Commander-Tank | -6/Cetus Commander-Mutant | -6/Archives Commander-Tank | -6/Hub_04(d) Scavenger-Tank | -5/Factory Scavenger-Tank | -5/Waste Scavenger-Mutant | -5/Factory Scavenger-Tank | -5/Garrison Scavenger-Mutant | -4/Factory Scavenger-Gunner | -4/Garrison Botlord-Gunner | -3/Research Botlord-Gunner | -2/Research Botlord-Gunner | -2/DSF Botlord-Assassin | -1/Access Resources | -11 -10 -10 -9 -9 -9 -8 -8 -8 -8 -8 -8 -8 -7 -7 -7 -7 -7 -7 -6 -6 -6 -6 -6 -5 -5 -5 -5 -4 -4 -3 -2 -2 -1 ----------- Run | Yrd Mat Min Mat Min Exi Min Mat Gar Mat Gar Mat Gar Fac Was Fac Gar Fac Gar Fac Ext Cet Arc Hub Fac Was Fac Gar Fac Gar Res Res DSF Acc Matter Collected 18830 | 243 521 267 1173 200 96 208 1504 936 283 1643 939 672 39 226 155 200 . 518 737 747 353 180 222 177 . 336 1251 523 982 727 . 167 2605 Remotely 770 | . . . . . . . . . . . . . . . . 30 . . . . . . . . . . . . . . . . 740 Salvage Created 22995 | 123 457 188 1276 150 . 117 1867 758 257 1420 1223 1037 56 1590 11 1222 30 1427 594 788 412 316 289 373 . 431 697 1106 832 505 . 320 3123 Parts 1093 | 7 31 12 93 16 . 9 81 40 11 82 69 54 2 25 1 39 . 52 26 26 19 22 22 21 . 16 33 54 35 27 . 12 156 Haulers Intercepted 15 | . 1 . 2 . . . 5 . 2 . 2 . 1 . . . . . 1 . . . . 1 . . . . . . . . . Recyclers Shooed 22 | 2 3 . . 1 . . 3 . . . 2 . . . . . . . 1 . . . 1 . . . . . . 3 . . 6 Parts Field Recycled . | . . . . . . . . . . . . . . . . . . . . . . . . . . . . . . . . . . Retrieved Matter . | . . . . . . . . . . . . . . . . . . . . . . . . . . . . . . . . . . Parts Self-Destructed . | . . . . . . . . . . . . . . . . . . . . . . . . . . . . . . . . . . Prevented . | . . . . . . . . . . . . . . . . . . . . . . . . . . . . . . . . . . Kills | -11 -10 -10 -9 -9 -9 -8 -8 -8 -8 -8 -8 -8 -7 -7 -7 -7 -7 -7 -6 -6 -6 -6 -6 -5 -5 -5 -5 -4 -4 -3 -2 -2 -1 ------- Run | Yrd Mat Min Mat Min Exi Min Mat Gar Mat Gar Mat Gar Fac Was Fac Gar Fac Gar Fac Ext Cet Arc Hub Fac Was Fac Gar Fac Gar Res Res DSF Acc Combat Hostiles Destroyed 384 | . 9 7 31 9 . 3 19 20 3 34 14 30 . 5 . 26 2 27 7 20 3 . 4 4 . 2 20 14 13 10 . 4 44 Melee 1 | . . . . . . . . . . . . . . . . . . . . . . . . . . . . . . . . . 1 Guns 224 | . 1 . 22 . . 1 15 14 3 32 11 22 . . . 25 2 27 5 7 . . 2 2 . 1 11 7 7 2 . 1 4 Cannons 70 | . 8 2 4 . . . . . . . 3 3 . 3 . . . . . 2 . . 2 2 . 1 3 2 4 1 . 3 27 AOE 66 | . . 5 5 9 . 2 3 6 . 2 . 3 . . . . . . . 7 1 . . . . . 6 3 1 7 . . 6 Classes Destroyed 23 | 2 5 1 3 1 . . . . . 2 1 3 . 2 . . . . . 1 . . 1 . . . . . . 1 . . . Worker 22 | . . 1 . . . 1 5 . . . 1 . . . . . . . 2 1 . . 2 1 . . . 1 . 5 . . 2 Builder 14 | . . . . . . . . . . . 3 . 1 . . . . . 2 1 . . . . . . . 2 . . . . 5 Tunneler 5 | 2 . 1 . . . . . . . . . . . . . . . . 1 . . . . . . 1 . . . . . . . Hauler 15 | . 1 . 2 . . . 5 . 2 . 2 . 1 . . . . . 1 . . . . 1 . . . . . . . . . Recycler 22 | 1 2 . . 2 . 1 6 . . . 2 . . . . . . . 1 . . . . . . 2 . 2 . 2 . . 1 Mechanic 5 | . 1 . . . . . 1 . . . 2 . . . . . . . . . . . . . . 1 . . . . . . . Operator 16 | . . . 2 . . . 1 . . . 1 . . . 1 . . . 1 1 . 9 . . . . . . . . . . . Watcher 20 | . 2 . 3 . . . 3 . . . 4 . . . . 2 . . . 2 1 . 1 1 . . . . . . . . 1 Swarmer 97 | . 3 3 7 8 . 3 3 8 1 6 . 7 . . . 5 . . . 10 . . . . . . 9 5 4 8 . . 7 Cutter 3 | . . . . . . . . . . . . 3 . . . . . . . . . . . . . . . . . . . . . Grunt 139 | . 6 4 14 . . . 10 9 3 21 7 3 . . . 14 . 16 3 2 . . 1 1 . . 7 5 2 . . . 11 Brawler 6 | . . . . . . . . . . . . 3 . . . . . . . . . . . . . . . 1 . . . . 2 Duelist 6 | . . . 2 . . . . . . 1 . 1 . . . . . . . . . . . . . . . . 1 . . . 1 Sentry 43 | . . . 8 . . . 6 3 . . 4 2 . . . 4 . 2 1 6 . . 1 . . 2 3 . . . . . 1 Demolisher 1 | . . . . . . . . . . . . . . . . . . . . . . . . . . . . 1 . . . . . Specialist 6 | . . . . . . . . . . . . 1 . . . . . . . . . . 1 . . . . . . . . 4 . Hunter 26 | . . . . . . . . . . 3 3 2 . . . 1 . 2 . . . . . . . . 2 2 3 . . . 8 Programmer 46 | . . . . . . . . . . 3 . 8 . . . 2 . 7 3 . . . . 3 . . . 2 3 1 . . 14 Heavy 2 | . . . . . . . . . . . . . . . . . . . . . . . 1 . . . . . . . . . 1 Behemoth 2 | . . . . . . . . . . . . . . . . . . . . 2 . . . . . . . . . . . . . Compactor 5 | . . . . . . . . . . . . . . 5 . . . . . . . . . . . . . . . . . . . Cetus Guard 3 | . . . . . . . . . . . . . . . . . . . . . 3 . . . . . . . . . . . . Striker 1 | . . . . . . . . . . . . . . . . . . . . . . . . . . . . . . 1 . . . Assembled 3 | . . . . 1 . . . . . . . . . . . . 2 . . . . . . . . . . . . . . . . Butcher 1 | . . . . . . . . . . . . . . . . . . . . . 1 . . . . . . . . . . . . Martyr 2 | . . . . . . . . . . . . . . 2 . . . . . . . . . . . . . . . . . . . Best Kill Streak 7 | 2 3 3 6 4 . 3 4 5 2 5 5 4 1 1 1 4 2 4 2 4 2 2 2 3 . 2 6 7 4 6 . 2 6 Combat Bots Only 6 | . 3 3 6 4 . 2 3 5 2 5 3 4 . 1 . 4 2 4 2 4 2 . 2 2 . 2 6 5 4 4 . 2 6 Max Kills in Single Turn 4 | 1 2 2 2 3 . 2 2 3 1 2 3 3 1 1 1 1 1 2 1 3 2 1 2 2 . 1 2 4 1 3 . 1 3 Gunslinging 1 | . . . . . . . . 1 . 1 . 1 . . . . . 1 . . . . . . . . . . . . . . . Exploded 3 | . . 2 2 3 . 2 2 3 . 2 . 3 . . . . . . . 3 1 . . . . . 2 3 1 3 . . 3 Melee 1 | . . . . . . . . . . . . . . . . . . . . . . . . . . . . . . . . . 1 Uniques/NPCs Destroyed 1 | . . . . . . . . . . . . . . . . . . . . . 1 . . . . . . . . . . . . A7 (-6/Cetus) Combat | -11 -10 -10 -9 -9 -9 -8 -8 -8 -8 -8 -8 -8 -7 -7 -7 -7 -7 -7 -6 -6 -6 -6 -6 -5 -5 -5 -5 -4 -4 -3 -2 -2 -1 -------- Run | Yrd Mat Min Mat Min Exi Min Mat Gar Mat Gar Mat Gar Fac Was Fac Gar Fac Gar Fac Ext Cet Arc Hub Fac Was Fac Gar Fac Gar Res Res DSF Acc Hostile Shots Fired 2285 | . 33 7 94 18 . 5 51 64 19 125 54 131 . . . 74 11 102 34 201 22 13 60 59 . 49 74 100 219 34 . 37 595 Missed 651 | . 10 1 29 3 . 2 12 18 1 33 22 40 . . . 32 6 21 11 59 9 6 15 15 . 20 18 31 57 11 . 12 157 Deflected 4 | . . . . . . . . . . . . . . . . . . . . . . . . . . . . . . . . . 4 Hits 1634 | . 23 6 65 15 . 3 39 46 18 92 32 91 . . . 42 5 81 23 142 13 7 45 44 . 29 56 69 162 23 . 25 438 Melee 25 | . . . 4 . . . . . . . . . . . . . 4 . . . . . 1 . . . . . 13 . . . 3 Projectile 1609 | . 23 6 61 15 . 3 39 46 18 92 32 91 . . . 42 1 81 23 142 13 7 44 44 . 29 56 69 149 23 . 25 435 AOE 13 | . . . . . . . . . . . . 1 . . . . . . . . . . . 1 . 1 . 6 . 4 . . . Critical Strikes 74 | . . . 1 . . . 3 2 . 3 1 5 . . . . 1 . 1 1 4 . 8 5 . 1 1 . 8 . . . 29 Actively Blocked 45 | . . . . . . . . . . . . . . . . . . . . . 4 . 8 5 . . . . 8 . . . 20 Part Disruptions 4 | . . . . . . . . . . . . 1 . . . . 1 . . . . . . . . . . . . . . . 2 Actively Blocked 1 | . . . . . . . . . . . . . . . . . . . . . . . . . . . . . . . . . 1 Damage Taken 29234 | . 268 66 893 215 . 50 590 689 299 1425 478 994 . . 6 463 142 1060 566 1923 420 170 762 692 . 701 556 1212 2714 913 . 684 10283 Core 3007 | . 73 . 98 19 . . 48 54 . 89 32 58 . . . 134 . 136 12 134 . . 40 28 . 27 51 60 183 58 . 58 1615 Absorbed by Shields 2982 | . . . . 8 . 11 . . . 19 . 320 . . . . . 98 . 364 41 . 128 254 . 250 392 244 402 . . . 451 Reduced by Siege Mode 674 | . . . . . . . . . . . . . . . . 14 . 43 20 66 19 . 11 . . . . 112 157 32 . . 200 Redirected to Shielding 187 | . . . . . . . . . . . . . . . . . . . . . . . . . . . . . . . . 85 102 Regen/Repaired (Parts) 646 | . 71 . 85 . . . 18 . . . . . . . 32 . . . . . 49 43 . . . . . 171 177 . . . . Core Remaining (%) 78 | 100 . 70 . . . 70 . . . . . 48 . . . . . 61 . . . . 78 . . . 89 . 78 95 . 96 . Volleys Fired 1444 | 11 40 12 73 15 . 6 80 45 19 84 86 79 3 45 2 38 10 72 52 75 9 35 29 19 7 13 62 44 58 33 . 21 267 Largest 3 | 2 2 2 2 2 . 2 3 3 3 3 3 3 2 2 2 3 3 3 3 3 1 3 3 3 1 3 3 3 3 3 . 3 3 Hottest 250 | 60 100 60 60 46 . 46 75 75 75 100 135 160 160 160 160 240 245 240 250 240 43 151 151 160 7 151 117 213 211 214 . 218 205 Shots Fired 2739 | 22 79 19 137 22 . 10 228 115 56 229 172 159 4 46 3 108 14 151 94 135 10 65 52 44 7 25 110 91 93 52 . 27 360 Gun 1833 | 22 5 . 115 14 . 8 225 106 54 225 126 132 2 2 2 108 6 122 64 96 1 35 39 31 . 15 81 56 56 17 . 3 65 Cannon 687 | . 73 14 16 . . . . . . 1 35 26 . 33 . . 2 24 22 18 . 30 10 12 . 7 14 24 20 18 . 22 266 Launcher 92 | . . 5 6 8 . 2 3 9 2 3 2 1 . . . . . . 1 4 9 . 3 . . 1 10 7 4 6 . . 6 Special 127 | . 1 . . . . . . . . . 9 . 2 11 1 . 6 5 7 17 . . . 1 7 2 5 4 13 11 . 2 23 Kinetic 1493 | 11 78 14 131 14 . 8 225 104 54 221 126 84 . . . . . . . . 1 4 15 25 . 6 94 57 64 20 . 6 131 Thermal 948 | 11 1 . . . . . . . . 1 27 70 2 35 2 108 8 146 86 109 . 61 34 18 . 16 1 19 4 12 . 19 158 Explosive 80 | . . 5 6 8 . 2 3 9 2 3 2 1 . . . . . . 1 4 . . 3 . . 1 10 4 4 6 . . 6 Electromagnetic 92 | . . . . . . . . 2 . 4 8 4 . . . . . . . 5 9 . . . . . . 7 8 3 . . 42 Robot Hit Streak 39 | 8 6 5 24 10 . 3 12 11 4 8 11 8 3 8 8 23 5 39 14 19 7 6 8 10 7 12 13 13 25 6 . 5 20 Robot Miss Streak 9 | 1 3 1 2 3 . 1 5 3 5 3 5 9 1 2 1 5 2 3 4 5 . 5 2 2 1 1 5 4 3 3 . 2 5 Penetration Max 1 | . . . . . . . . . . . . . . . . . . . . . . . 1 1 . . 1 1 1 . . . 1 Secondary Targets 37 | . . . 2 . . . 1 4 1 7 1 4 . . . 5 1 5 1 1 . . 1 . . . . . 3 . . . . Max Gunslinging Chain 2 | . . . 1 . . . 1 1 1 2 1 1 . . . 1 1 1 1 1 . . 1 . . . . . 1 . . . . Capacitor 110 | . . . . . . . . . . . . . . . . . . . . . . . . . . . . . . . . 16 94 Shots Hit Robots 1703 | 17 39 10 94 10 . 6 155 67 32 135 87 95 4 40 3 80 7 119 63 98 13 37 29 24 6 19 45 48 62 22 . 17 220 Core Hits 935 | 4 16 9 51 14 . 6 50 40 12 64 44 50 2 10 2 90 4 99 40 49 16 18 12 12 . 6 35 39 32 21 . 8 80 Critical Kills 27 | . . . 2 . . . 3 . 1 1 . . . 3 . . . . 1 1 . . . 1 . . 6 2 . . . 1 5 Critical Parts Destroyed 25 | . . . . . . . 3 . . 1 1 . . 1 . . . . . . . . 1 3 . 1 2 1 . 2 . 2 7 Critical Strikes 74 | . 1 . 2 . . . 6 . 1 2 1 . . 4 . . . . 1 3 2 . 2 5 . 1 10 3 2 2 . 3 23 Burn 4 | . . . . . . . . . . . . . . . . . . . . 2 . . 1 1 . . . . . . . . . Meltdown 7 | . . . . . . . . . . . . . . 2 . . . . 1 1 . . . . . . . 1 . . . . 2 Destroy 38 | . . . 2 . . . 1 . 1 2 1 . . . . . . . . . . . 1 4 . 1 8 2 . 2 . 3 10 Blast 14 | . 1 . . . . . . . . . . . . . . . . . . . . . . . . . 2 . 1 . . . 10 Corrupt 2 | . . . . . . . . . . . . . . . . . . . . . . . . . . . . . 1 . . . 1 Smash 7 | . . . . . . . 5 . . . . . . 2 . . . . . . . . . . . . . . . . . . . Sever 2 | . . . . . . . . . . . . . . . . . . . . . 2 . . . . . . . . . . . . Melee Attacks 227 | . . 1 17 . . . 54 11 . 15 6 7 2 6 3 9 1 8 7 . 12 5 1 4 . 7 3 10 11 7 . . 20 Impact 147 | . . 1 17 . . . 54 11 . 15 6 7 2 6 3 9 1 8 7 . . . . . . . . . . . . . . Slashing 80 | . . . . . . . . . . . . . . . . . . . . . 12 5 1 4 . 7 3 10 11 7 . . 20 Piercing . | . . . . . . . . . . . . . . . . . . . . . . . . . . . . . . . . . . Sneak Attacks 45 | . . . . . . . 12 . . . . . 1 6 . . . . 1 . 12 2 1 . . 4 . 2 . 2 . . 2 Combat Hostiles . | . . . . . . . . . . . . . . . . . . . . . . . . . . . . . . . . . . Follow-up Attacks . | . . . . . . . . . . . . . . . . . . . . . . . . . . . . . . . . . . Damage Inflicted 52932 | 201 727 558 1850 619 . 244 3544 1935 696 2933 1927 2391 115 1401 34 1864 81 3156 1501 2947 1795 1258 1314 951 . 770 2421 2194 2630 1347 . 577 8951 Guns 24853 | 201 42 . 1187 135 . 101 2392 1087 583 2652 1462 1786 43 56 34 1864 81 2483 1192 1851 27 520 619 721 . 208 948 669 1078 138 . 25 668 Cannons 13604 | . 685 159 204 . . . . . . . 271 512 . 912 . . . 673 176 291 . 504 287 230 . 160 230 440 345 216 . 535 6774 Explosions 9396 | . . 399 456 484 . 138 88 848 113 266 164 90 . . . . . . . 745 1023 . 257 . . 35 1226 921 515 684 . . 944 Melee 4657 | . . . . . . . 1064 . . . . . 72 433 . . . . 126 . 745 234 86 . . 367 . 159 692 187 . . 492 Ramming 422 | . . . 3 . . 5 . . . 15 30 3 . . . . . . 7 60 . . 65 . . . 17 5 . 122 . 17 73 Kinetic 18648 | 111 727 159 1391 135 . 101 2392 1087 583 2590 1462 896 . . . . . . . . 27 56 287 615 . 79 1178 669 1181 138 . 104 2680 Thermal 18104 | 90 . . . . . . . . . . 92 1268 43 968 34 1864 81 3156 1368 2045 162 968 619 336 . 289 . 358 42 179 . 456 3686 Explosive 7883 | . . 399 456 484 . 138 88 848 113 266 164 90 . . . . . . . 745 . . 257 . . 35 1226 431 515 684 . . 944 Electromagnetic 3218 | . . . . . . . . . . 62 179 134 . . . . . . . 97 861 . . . . . . 572 200 37 . . 1076 Impact 1695 | . . . . . . . 1064 . . . . . 72 433 . . . . 126 . . . . . . . . . . . . . . Slashing 2962 | . . . . . . . . . . . . . . . . . . . . . 745 234 86 . . 367 . 159 692 187 . . 492 Piercing . | . . . . . . . . . . . . . . . . . . . . . . . . . . . . . . . . . . Highest Corruption 50 | . . . . . . . . . . 7 9 17 . . . . . 8 25 25 31 31 5 13 29 40 50 1 13 . . . 37 Average Corruption 16 | . . . . . . . . . . 5 7 12 . . . . . 7 15 25 30 15 5 12 23 29 40 1 10 . . . 17 Corruption Purged 26 | . . . . . . . . . . . . . . . . . . . . . . 26 . . . . . . . . . . . Corruption Blocked . | . . . . . . . . . . . . . . . . . . . . . . . . . . . . . . . . . . Effects 756 | . . . . . . . . . . 47 43 48 . . . . . 51 43 113 28 43 20 12 11 44 85 1 48 . . . 119 Message Errors 165 | . . . . . . . . . . 14 8 12 . . . . . 12 10 23 6 10 5 1 2 8 22 . 7 . . . 25 Matter Fused 161 | . . . . . . . . . . 9 11 10 . . . . . 11 14 27 8 6 2 3 4 10 16 . 10 . . . 20 Heat Flow Errors 100 | . . . . . . . . . . 5 5 3 . . . . . 6 6 14 3 11 4 1 2 7 13 . 5 . . . 15 Energy Discharges 94 | . . . . . . . . . . 3 9 7 . . . . . 8 2 14 6 7 2 1 . 6 8 1 5 . . . 15 Parts Rejected 7 | . . . . . . . . . . 1 1 . . . . . . . . 1 . . . . . . . . 1 . . . 3 Parts Fused 6 | . . . . . . . . . . . . 1 . . . . . . . 1 . . 1 . . . 1 . . . . . 2 Data Loss (minor) 96 | . . . . . . . . . . 4 3 10 . . . . . 5 5 17 4 4 2 3 1 5 10 . 9 . . . 14 Data Loss (major) 33 | . . . . . . . . . . 2 . 3 . . . . . 4 1 3 . 3 1 1 1 3 5 . 4 . . . 2 Misfires 26 | . . . . . . . . . . 2 4 1 . . . . . 2 3 4 . . 1 . . 1 1 . 3 . . . 4 Alerts 19 | . . . . . . . . . . 3 . . . . . . . 2 1 3 1 1 1 . . 2 . . 2 . . . 3 Misdirections 5 | . . . . . . . . . . . . . . . . . . . . 2 . . . 1 1 1 . . . . . . . Weapon Failures 44 | . . . . . . . . . . 4 2 1 . . . . . 1 1 4 . 1 1 1 . 1 9 . 2 . . . 16 Overload Shots 22 | . . . . . . . . . . . . . . . . . . . 2 8 . . 9 1 . 1 1 . . . . . . Effects 1 | . . . . . . . . . . . . . . . . . . . . 1 . . . . . . . . . . . . . Heat Surge 1 | . . . . . . . . . . . . . . . . . . . . 1 . . . . . . . . . . . . . Overflow Damage 2417 | . 19 42 6 43 . 14 455 63 . . . 50 32 129 . . . . 91 51 114 143 56 17 . 245 30 28 183 144 . . 462 Projectiles 453 | . 19 . . . . . . . . . . 50 . . . . . . 5 . . 26 . 17 . . 30 12 . 6 . . 288 Explosions 537 | . . 42 6 43 . 14 30 63 . . . . . . . . . . . 46 13 . 56 . . . . 15 90 63 . . 56 Melee 1427 | . . . . . . . 425 . . . . . 32 129 . . . . 86 5 101 117 . . . 245 . 1 93 75 . . 118 Knockbacks 50 | . 11 3 3 . . . 5 . . 1 . . 1 1 . . . . 1 . . . . . . . 2 . . 2 . . 20 Impact 10 | . . . . . . . 5 . . 1 . . 1 1 . . . . 1 . . . . . . . . . . 1 . . . Kinetic 32 | . 11 3 3 . . . . . . . . . . . . . . . . . . . . . . . 1 . . . . . 14 Secondary 8 | . . . . . . . . . . . . . . . . . . . . . . . . . . . 1 . . 1 . . 6 Self-Inflicted Damage 390 | . . . 71 89 . 41 16 60 . . 16 . . . . . . . . 20 33 . . . . . . . . . . 8 36 Shots 15 | . . . 3 4 . 1 1 2 . . 1 . . . . . . . . 1 2 . . . . . . . . . . . . Rammed 28 | . . . . . . . . . . . . . . . . . . . 1 4 . . 8 . . . 2 1 . 6 . 3 3 Targets Rammed 39 | . 1 . 1 . . 1 . . . 2 3 1 . . . . . . 1 5 . . 8 . . . 2 1 . 7 . 3 3 Kicked 9 | . 1 . 1 . . 1 . . . 2 3 1 . . . . . . . . . . . . . . . . . . . . . Crushed 2 | . . . . . . . . . . . . . . . . . . . . 1 . . . . . . . . . 1 . . . Highest Temperature 539 | 20 168 27 42 . . . 270 266 302 295 241 352 48 42 18 326 87 291 438 129 46 78 274 116 214 210 539 448 290 194 . 188 498 Average Temperature 98 | 15 44 13 11 . . . 77 81 121 96 77 118 26 17 12 84 23 97 91 48 24 33 149 40 99 99 123 164 83 96 . 91 133 Received Heat Transfer 4187 | . 126 18 204 . . . 252 279 162 460 153 48 . . . 168 20 287 144 308 9 18 186 27 . 131 122 6 129 84 . 81 765 Effects 23 | . . . . . . . . . . 5 . 2 . . . 1 . . . . . . . . . . 6 4 . . . . 5 Shutdowns 8 | . . . . . . . . . . . . . . . . . . . . . . . . . . . 2 3 . . . . 3 Energy Bleed 10 | . . . . . . . . . . 4 . 1 . . . 1 . . . . . . . . . . 1 1 . . . . 2 Interference 3 | . . . . . . . . . . 1 . 1 . . . . . . . . . . . . . . 1 . . . . . . Damage (minor) 1 | . . . . . . . . . . . . . . . . . . . . . . . . . . . 1 . . . . . . Damage (major) 1 | . . . . . . . . . . . . . . . . . . . . . . . . . . . 1 . . . . . . Siege Activations 36 | . . . . . . . . . . . . . . . . 1 . 9 5 6 1 . 3 . . . 2 3 2 1 . . 3 Total Turns 534 | . . . . . . . . . . . . . . . . 9 . 82 126 141 10 . 17 . . . 7 41 36 10 . . 55 Longest Duration 58 | . . . . . . . . . . . . . . . . 9 . 18 58 51 10 . 10 . . . 4 25 24 10 . . 28 Martial Activations . | . . . . . . . . . . . . . . . . . . . . . . . . . . . . . . . . . . Shielding Activations 1 | . . . . . . . . . . . . . . . . . . . . . . . . . . . . . . . . . 1 Total Turns 21 | . . . . . . . . . . . . . . . . . . . . . . . . . . . . . . . . . 21 Longest Duration 21 | . . . . . . . . . . . . . . . . . . . . . . . . . . . . . . . . . 21 Robots Disrupted . | . . . . . . . . . . . . . . . . . . . . . . . . . . . . . . . . . . Combat Hostiles . | . . . . . . . . . . . . . . . . . . . . . . . . . . . . . . . . . . Robots Corrupted 24 | . . . . . . . 9 . . . . 1 1 1 . . . . 1 . 2 . . . . . . 2 1 . . . 6 Combat Hostiles 10 | . . . . . . . 1 . . . . 1 . . . . . . . . 2 . . . . . . 1 1 . . . 4 Parts Fried 35 | . . . . . . . 10 . . . . 1 2 4 . . . . . . 5 . . . . . . . 1 . . . 12 Impact Corruptions 30 | . . . . . . . 19 . . . . . 2 2 . . . . 3 1 . . . . . . . 1 . . . . 2 Robots Melted 14 | . . . . . . . . . . . . 1 . 2 . 1 . . 3 4 . . . . . . . 1 . . . . 2 Combat Hostiles 13 | . . . . . . . . . . . . 1 . 2 . 1 . . 2 4 . . . . . . . 1 . . . . 2 Parts Melted 73 | . . . . . . . . . . . . 5 . . 1 9 . 18 10 7 . 4 . . . . . 4 . . . . 15 Heat Transferred 28550 | 200 . . . . . . . . . . 111 2220 100 1235 75 3960 175 6114 2800 3910 100 1466 1005 522 . 435 . 296 37 148 . 407 3234 Parts Sabotaged . | . . . . . . . . . . . . . . . . . . . . . . . . . . . . . . . . . . Parts Stolen . | . . . . . . . . . . . . . . . . . . . . . . . . . . . . . . . . . . Parts Stripped . | . . . . . . . . . . . . . . . . . . . . . . . . . . . . . . . . . . Power Chain Reactions 1 | . . . . . . . . . . . . . . . . . . . . . 1 . . . . . . . . . . . . Alert | -11 -10 -10 -9 -9 -9 -8 -8 -8 -8 -8 -8 -8 -7 -7 -7 -7 -7 -7 -6 -6 -6 -6 -6 -5 -5 -5 -5 -4 -4 -3 -2 -2 -1 ------- Run | Yrd Mat Min Mat Min Exi Min Mat Gar Mat Gar Mat Gar Fac Was Fac Gar Fac Gar Fac Ext Cet Arc Hub Fac Was Fac Gar Fac Gar Res Res DSF Acc Maximum Alert Level 5 | . . . 2 . . . 1 4 2 5 3 4 3 1 1 5 3 4 3 1 1 1 4 2 . . 3 2 4 4 2 3 3 Low Security (%) 35 | 100 100 100 50 100 . 100 68 . . . . . . 93 59 2 . . . 86 78 92 38 . 100 100 16 . . . . . . Level 1 16 | . . . 47 . . . 31 23 . . . . . 6 40 21 . . 39 13 21 7 8 18 . . 4 28 . . . . 38 Level 2 17 | . . . 1 . . . . 27 100 25 13 17 41 . . 2 . 14 55 . . . 9 81 . . 43 71 26 4 100 36 29 Level 3 20 | . . . . . . . . 40 . 25 86 51 58 . . 18 100 52 4 . . . 37 . . . 35 . 64 38 . 63 32 Level 4 8 | . . . . . . . . 8 . 33 . 30 . . . 28 . 33 . . . . 5 . . . . . 8 56 . . . Level 5 1 | . . . . . . . . . . 14 . . . . . 26 . . . . . . . . . . . . . . . . . High Security . | . . . . . . . . . . . . . . . . . . . . . . . . . . . . . . . . . . Max Security . | . . . . . . . . . . . . . . . . . . . . . . . . . . . . . . . . . . Peak Influence 1904 | 5 75 86 408 196 . 76 376 1301 657 1736 946 1522 798 224 278 1904 999 1413 741 262 259 230 1163 542 146 115 965 620 1142 1291 676 919 906 Initial 999 | . . . . 90 . . . 239 633 404 826 582 798 224 . 149 999 543 741 173 141 50 . 542 146 39 . 506 417 642 676 503 532 Average 478 | 2 17 19 182 124 . 8 113 633 614 1064 797 978 717 53 127 1158 872 1006 473 94 165 85 439 442 103 27 564 462 830 1076 673 753 534 Influence Increases 20389 | 15 337 220 971 258 . 112 768 1082 275 1392 692 1020 13 3 580 1915 8 1155 334 770 350 317 1494 202 . 176 1075 574 865 1197 5 506 1708 Destroy 0b10 Robot/C 9740 | . 180 140 620 160 . 60 380 560 120 800 280 600 . . 180 940 . 560 180 440 160 80 480 80 . 40 480 320 380 440 . 120 960 Destroy 0b10 Robot/NC 745 | 15 30 10 35 10 . 10 105 10 20 . 75 . 10 . 25 15 . 10 40 30 10 45 35 15 . 20 . 25 15 60 . 15 55 Destroy Leader 1488 | . 46 30 160 20 . 10 106 20 38 50 102 40 2 . 64 50 . 80 52 46 . . 132 32 . 20 30 50 50 54 . 20 184 Allied During Kill 2391 | . . . . . . . . 28 12 31 . . . . 264 515 . 17 16 100 167 122 572 . . . 32 16 27 376 . 48 48 Successful Hack 478 | . 46 . 31 . . . 71 14 . 14 16 14 . . 14 30 5 18 6 23 . . . 17 . 16 . 12 24 40 5 . 62 Select Force Hacks 30 | . . . . . . . . . . . . . . . 30 . . . . . . . . . . . . . . . . . . Disable Machine 630 | . 15 . . 15 . . 45 . 60 15 60 . . . . . . 45 15 75 . 60 60 15 . 30 30 15 15 45 . 15 . Anti-Garrison Action 2300 | . . . . . . . . 300 . 400 . 250 . . . 300 . 350 . . . . 150 . . . 300 . 250 . . . . Destroy Structure 1822 | . 5 40 65 53 . 17 46 75 10 67 39 11 1 3 3 20 3 . 25 41 13 10 50 28 . 50 143 106 89 182 . 288 339 Partial Spotted 30 | . 15 . . . . . 15 . . . . . . . . . . . . . . . . . . . . . . . . . . Lose Combat Pursuer 735 | . . . 60 . . 15 . 75 15 15 120 105 . . . 45 . 75 . 15 . . 15 15 . . 60 30 15 . . . 60 Influence Decreases 19596 | 15 337 220 739 372 118 112 400 149 954 318 1492 394 894 644 366 225 1135 519 1392 871 477 444 386 892 362 232 110 943 319 1136 537 288 1804 Entered New Map 8893 | . . . . 142 118 . . 129 668 218 870 314 724 417 . 65 905 234 672 182 113 77 . 566 272 17 . 459 179 500 527 168 357 Time Decay 7667 | 15 337 220 589 230 . 109 390 . 246 . 452 . 170 207 266 . 110 . 620 541 294 347 256 326 90 205 . 404 . 506 10 . 727 Lost Part 953 | . . . . . . 3 10 . . 40 . 80 . . . . . 10 30 30 10 . 10 . . 10 10 . 100 10 . 20 580 Lost Ally 1508 | . . . . . . . . 20 40 60 20 . . 20 100 160 120 . 70 118 60 20 120 . . . 100 80 40 120 . 100 140 Purge Threat 575 | . . . 150 . . . . . . . 150 . . . . . . 275 . . . . . . . . . . . . . . . Squads Dispatched 55 | . 1 . 3 1 . . 2 . . . 2 . 1 . 4 . . . 4 2 . . 12 1 . 1 . 3 . 3 . 2 13 Investigation 10 | . 1 . 2 1 . . . . . . . . . . 2 . . . . . . . 2 . . . . . . 1 . . 1 Extermination 12 | . . . . . . . . . . . . . . . 1 . . . 2 . . . 1 1 . 1 . 1 . . . . 5 Reinforcement 22 | . . . 1 . . . 1 . . . 1 . . . 1 . . . 2 2 . . 5 . . . . 1 . 2 . 2 4 Assault 5 | . . . . . . . . . . . 1 . . . . . . . . . . . 3 . . . . 1 . . . . . Garrison 6 | . . . . . . . 1 . . . . . 1 . . . . . . . . . 1 . . . . . . . . . 3 Intercept . | . . . . . . . . . . . . . . . . . . . . . . . . . . . . . . . . . . Searches Triggered . | . . . . . . . . . . . . . . . . . . . . . . . . . . . . . . . . . . Construction Impeded 2 | . . . . . . . 1 . . . . . . . . . . . . 1 . . . . . . . . . . . . . Haulers Reinforced 5 | . . . . . . . . . . . . . . . . . . . 2 . . . 1 . . . . . . 1 . . 1 Active Scanning Responses . | . . . . . . . . . . . . . . . . . . . . . . . . . . . . . . . . . . Cargo Convoy Interrupts 1 | . . . . . . . . . . . . . . . . . . . 1 . . . . . . . . . . . . . . Stealth | -11 -10 -10 -9 -9 -9 -8 -8 -8 -8 -8 -8 -8 -7 -7 -7 -7 -7 -7 -6 -6 -6 -6 -6 -5 -5 -5 -5 -4 -4 -3 -2 -2 -1 --------- Run | Yrd Mat Min Mat Min Exi Min Mat Gar Mat Gar Mat Gar Fac Was Fac Gar Fac Gar Fac Ext Cet Arc Hub Fac Was Fac Gar Fac Gar Res Res DSF Acc Distress Signals 40 | . 1 . 5 . . 1 6 . 1 . 6 . . . . 2 . . 2 2 2 . . . . . . . . 7 . . 5 Communications Jammed 149 | . . . . . . . . . . . . . . . . . . . . 6 . . 4 3 . . . 2 . 74 . . 60 Distress Signals 138 | . . . . . . . . . . . . . . . . . . . . 6 . . 2 3 . . . 2 . 74 . . 51 Times Spotted 666 | . 15 7 50 9 . 3 35 30 11 41 36 30 . 6 7 44 14 25 15 24 10 21 27 10 3 8 28 24 21 21 . 11 80 Peak Tracking Total 7 | . 3 2 6 4 . 3 3 5 6 5 7 5 . 2 2 7 5 7 2 6 5 2 6 3 1 5 5 5 7 4 . 4 5 Tactical Retreats 38 | . . . 3 . . 1 . 5 1 1 6 3 . . . 2 . 3 . 1 . . 1 1 . . 4 1 1 . . . 4 Traps | -11 -10 -10 -9 -9 -9 -8 -8 -8 -8 -8 -8 -8 -7 -7 -7 -7 -7 -7 -6 -6 -6 -6 -6 -5 -5 -5 -5 -4 -4 -3 -2 -2 -1 ------- Run | Yrd Mat Min Mat Min Exi Min Mat Gar Mat Gar Mat Gar Fac Was Fac Gar Fac Gar Fac Ext Cet Arc Hub Fac Was Fac Gar Fac Gar Res Res DSF Acc Traps Triggered 32 | . 2 . 1 . . . . 2 . 5 1 4 1 . 1 2 1 2 1 1 . . . 2 . 1 2 . . 1 . . 2 Indirectly . | . . . . . . . . . . . . . . . . . . . . . . . . . . . . . . . . . . Trap Hack Attempts . | . . . . . . . . . . . . . . . . . . . . . . . . . . . . . . . . . . Triggered . | . . . . . . . . . . . . . . . . . . . . . . . . . . . . . . . . . . Disarmed . | . . . . . . . . . . . . . . . . . . . . . . . . . . . . . . . . . . Reprogrammed . | . . . . . . . . . . . . . . . . . . . . . . . . . . . . . . . . . . Reused . | . . . . . . . . . . . . . . . . . . . . . . . . . . . . . . . . . . Traps Reconfigurated 31 | . . . . . . . 14 7 . 1 . . . . 6 . 2 . 1 . . . . . . . . . . . . . . Traps Extracted . | . . . . . . . . . . . . . . . . . . . . . . . . . . . . . . . . . . Installed . | . . . . . . . . . . . . . . . . . . . . . . . . . . . . . . . . . . Triggered . | . . . . . . . . . . . . . . . . . . . . . . . . . . . . . . . . . . Machines | -11 -10 -10 -9 -9 -9 -8 -8 -8 -8 -8 -8 -8 -7 -7 -7 -7 -7 -7 -6 -6 -6 -6 -6 -5 -5 -5 -5 -4 -4 -3 -2 -2 -1 ---------- Run | Yrd Mat Min Mat Min Exi Min Mat Gar Mat Gar Mat Gar Fac Was Fac Gar Fac Gar Fac Ext Cet Arc Hub Fac Was Fac Gar Fac Gar Res Res DSF Acc Machines Disabled 82 | . 1 . . 1 . . 3 8 4 6 4 6 . . . 4 . 9 1 6 . 4 5 1 . 2 7 1 5 3 . 1 . Max in Single Turn 2 | . 1 . . 1 . . 1 2 2 1 1 1 . . . 1 . 1 1 1 . 1 1 1 . 1 1 1 1 1 . . . Garrison Access 5 | . . . . . . . . . . . . . . . . . . . . . . . 1 . . . . . . 1 . . 3 Garrison Relay 26 | . . . . . . . . 3 . 4 . 3 . . . 4 . 5 . . . . . . . . 4 . 3 . . . . Phase Generator 1 | . . . . . . . . 1 . . . . . . . . . . . . . . . . . . . . . . . . . Machines Repaired . | . . . . . . . . . . . . . . . . . . . . . . . . . . . . . . . . . . Machines Dismantled . | . . . . . . . . . . . . . . . . . . . . . . . . . . . . . . . . . . Machines Sabotaged . | . . . . . . . . . . . . . . . . . . . . . . . . . . . . . . . . . . Overloaded Fab Kills . | . . . . . . . . . . . . . . . . . . . . . . . . . . . . . . . . . . Hacking | -11 -10 -10 -9 -9 -9 -8 -8 -8 -8 -8 -8 -8 -7 -7 -7 -7 -7 -7 -6 -6 -6 -6 -6 -5 -5 -5 -5 -4 -4 -3 -2 -2 -1 --------- Run | Yrd Mat Min Mat Min Exi Min Mat Gar Mat Gar Mat Gar Fac Was Fac Gar Fac Gar Fac Ext Cet Arc Hub Fac Was Fac Gar Fac Gar Res Res DSF Acc Machines Accessed 133 | . 10 . 13 1 2 . 13 4 4 3 7 4 2 . 5 4 3 3 5 10 . . 4 5 . 4 3 2 2 5 1 . 14 Terminals 93 | . 7 . 10 . . . 9 4 2 3 6 4 2 . . 4 1 3 3 9 . . 3 2 . 2 3 . 2 2 1 . 11 Fabricators 6 | . . . . . . . . . . . . . . . 1 . 1 . . . . . . 1 . 1 . . . 2 . . . Repair Stations 9 | . 1 . 2 . . . 2 . . . . . . . 2 . . . . . . . . 1 . . . 1 . . . . . Recycling Units 6 | . 2 . . . . . . . 1 . . . . . 1 . . . 1 1 . . . . . . . . . . . . . Scanalyzers 4 | . . . 1 . . . 1 . . . . . . . . . . . 1 . . . . 1 . . . . . . . . . Garrison Access 12 | . . . . . . . 1 . 1 . 1 . . . 1 . 1 . . . . . 1 . . 1 . 1 . 1 . . 3 Total Hacks 285 | . 24 . 35 1 5 . 41 8 11 3 21 5 4 . 9 6 4 3 13 22 . . 9 8 . 8 5 7 2 10 2 . 19 Successful 138 | . 19 . 19 1 5 . 28 2 5 1 7 1 1 . 6 2 3 2 4 3 . . 4 4 . 4 . 2 2 6 1 . 6 Failed 146 | . 4 . 16 . . . 13 6 6 2 14 4 3 . 3 4 1 1 9 19 . . 5 4 . 4 5 5 . 4 1 . 13 Catastrophic 37 | . 1 . 2 . . . 1 1 1 2 1 2 1 . 1 1 1 . 1 8 . . 1 2 . 2 3 1 . 1 . . 3 Database Lockouts 1 | . 1 . . . . . . . . . . . . . . . . . . . . . . . . . . . . . . . . Manual 123 | . 10 . 21 . 1 . 21 1 8 . 19 . 2 . 5 . 1 . 2 6 1 . 6 2 . 6 . 1 . 3 . . 7 Terminals 204 | . 15 . 28 . . . 29 8 7 3 20 5 4 . . 6 1 3 9 20 . . 7 3 . 6 5 . 2 5 2 . 16 Fabricators 9 | . . . . . . . . . . . . . . . 1 . 2 . . . . . . 1 . 1 . . . 4 . . . Repair Stations 24 | . 5 . 4 . . . 5 . . . . . . . 3 . . . . . . . . 2 . . . 5 . . . . . Recycling Units 15 | . 4 . . . . . . . 3 . . . . . 4 . . . 2 2 . . . . . . . . . . . . . Scanalyzers 12 | . . . 3 . . . 5 . . . . . . . . . . . 2 . . . . 2 . . . . . . . . . Garrison Access 15 | . . . . . . . 2 . 1 . 1 . . . 1 . 1 . . . . . 2 . . 1 . 2 . 1 . . 3 Terminal Hacks 56 | . 8 . 9 1 5 . 11 2 1 1 3 1 . . . 2 . 2 1 1 . . 1 1 . . . . 2 2 1 . 1 Record 4 | . . . . . 4 . . . . . . . . . . . . . . . . . . . . . . . . . . . . Part Schematic 1 | . . . . . . . . . . . 1 . . . . . . . . . . . . . . . . . . . . . . Robot Analysis 4 | . 3 . . . . . 1 . . . . . . . . . . . . . . . . . . . . . . . . . . Prototype ID Bank 8 | . 2 . 3 . . . 2 . . . . . . . . . . . . . . . . . . . . . . 1 . . . Open Door 2 | . . . . 1 . . . . . . . . . . . . . 1 . . . . . . . . . . . . . . . Open DSF 2 | . . . . . . . . . . . . . . . . . . . . . . . . 1 . . . . . . 1 . . Branch Access Points 2 | . . . . . . . 1 . . . . . . . . . . . 1 . . . . . . . . . . . . . . Emergency Access Points 5 | . . . . . . . . . . 1 . 1 . . . 1 . 1 . . . . . . . . . . 1 . . . . Terminal Index 2 | . . . . . . . 1 . . . 1 . . . . . . . . . . . . . . . . . . . . . . Alert Level 2 | . . . 1 . . . 1 . . . . . . . . . . . . . . . . . . . . . . . . . . Unreport Threat 2 | . . . 1 . . . . . . . 1 . . . . . . . . . . . . . . . . . . . . . . Locate Traps 8 | . 2 . 2 . . . 3 . . . . . . . . . . . . . . . 1 . . . . . . . . . . Hauler Manifests 1 | . 1 . . . . . . . . . . . . . . . . . . . . . . . . . . . . . . . . Zone Layout 8 | . . . 2 . . . 2 . 1 . . . . . . . . . . 1 . . . . . . . . . 1 . . 1 Garrison Registry 2 | . . . . . . . . 1 . . . . . . . . . . . . . . . . . . . . 1 . . . . Patrol Navigation 1 | . . . . . . . . 1 . . . . . . . . . . . . . . . . . . . . . . . . . Security Stations 1 | . . . . . . . . . . . . . . . . 1 . . . . . . . . . . . . . . . . . Proto ID Catalog 1 | . . . . . 1 . . . . . . . . . . . . . . . . . . . . . . . . . . . . Fabricator Hacks 5 | . . . . . . . . . . . . . . . 1 . 1 . . . . . . 1 . 1 . . . 1 . . . Network Status 5 | . . . . . . . . . . . . . . . 1 . 1 . . . . . . 1 . 1 . . . 1 . . . Repair Station Hacks 15 | . 4 . 4 . . . 3 . . . . . . . 2 . . . . . . . . 1 . . . 1 . . . . . Scan Component 9 | . 2 . 2 . . . 2 . . . . . . . 1 . . . . . . . . 1 . . . 1 . . . . . Repair 6 | . 2 . 2 . . . 1 . . . . . . . 1 . . . . . . . . . . . . . . . . . . Recycling Unit Hacks 3 | . 1 . . . . . . . . . . . . . . . . . 2 . . . . . . . . . . . . . . Report Inventory 2 | . 1 . . . . . . . . . . . . . . . . . 1 . . . . . . . . . . . . . . Retrieve Components 1 | . . . . . . . . . . . . . . . . . . . 1 . . . . . . . . . . . . . . Scanalyzer 8 | . . . 1 . . . 5 . . . . . . . . . . . 1 . . . . 1 . . . . . . . . . Insert Component 6 | . . . 1 . . . 3 . . . . . . . . . . . 1 . . . . 1 . . . . . . . . . Analyze 2 | . . . . . . . 2 . . . . . . . . . . . . . . . . . . . . . . . . . . Garrison Access Hacks 12 | . . . . . . . 1 . 1 . 1 . . . 1 . 1 . . . . . 1 . . 1 . 1 . 1 . . 3 Unlock Access 8 | . . . . . . . 1 . 1 . 1 . . . 1 . 1 . . . . . 1 . . 1 . 1 . . . . . Seal Access 4 | . . . . . . . . . . . . . . . . . . . . . . . . . . . . . . 1 . . 3 Unauthorized Hacks 39 | . 6 . 5 . . . 8 . 3 . 3 . 1 . 2 . 1 . . 2 . . 2 . . 2 . . . 2 . . 2 Terminals 31 | . 3 . 5 . . . 7 . 2 . 3 . 1 . . . . . . 2 . . 2 . . 2 . . . 2 . . 2 Track 2 | . . . 1 . . . . . . . 1 . . . . . . . . . . . . . . . . . . . . . . Assimilate 2 | . . . . . . . 2 . . . . . . . . . . . . . . . . . . . . . . . . . . Botnet 20 | . 3 . 3 . . . 4 . 2 . 1 . 1 . . . . . . . . . . . . 2 . . . 2 . . 2 Disrupt 3 | . . . . . . . . . . . 1 . . . . . . . . 2 . . . . . . . . . . . . . Operators 2 | . . . 1 . . . 1 . . . . . . . . . . . . . . . . . . . . . . . . . . Sabotage 2 | . . . . . . . . . . . . . . . . . . . . . . . 2 . . . . . . . . . . Fabricators 1 | . . . . . . . . . . . . . . . . . 1 . . . . . . . . . . . . . . . . Haulers 1 | . . . . . . . . . . . . . . . . . 1 . . . . . . . . . . . . . . . . Repair Stations 1 | . . . . . . . 1 . . . . . . . . . . . . . . . . . . . . . . . . . . Mechanics 1 | . . . . . . . 1 . . . . . . . . . . . . . . . . . . . . . . . . . . Recycling Units 6 | . 3 . . . . . . . 1 . . . . . 2 . . . . . . . . . . . . . . . . . . Reject 1 | . 1 . . . . . . . . . . . . . . . . . . . . . . . . . . . . . . . . Recyclers 3 | . 1 . . . . . . . 1 . . . . . 1 . . . . . . . . . . . . . . . . . . Mask 1 | . 1 . . . . . . . . . . . . . . . . . . . . . . . . . . . . . . . . Tunnel 1 | . . . . . . . . . . . . . . . 1 . . . . . . . . . . . . . . . . . . Scanalyzers . | . . . . . . . . . . . . . . . . . . . . . . . . . . . . . . . . . . Garrison Access . | . . . . . . . . . . . . . . . . . . . . . . . . . . . . . . . . . . Data Cores Recovered 2 | . . . . . . . . . . . 1 . . . 1 . . . . . . . . . . . . . . . . . . Used 1 | . . . . . . . . . . . 1 . . . . . . . . . . . . . . . . . . . . . . Hacking Detections 111 | . 9 . 12 . . . 12 4 3 3 7 3 2 . 5 3 1 1 5 10 . . 4 3 . 2 3 2 2 3 1 . 11 Full Trace Events 3 | . . . 1 . . . . . 1 . . . . . . . . . . . . . . . . . . . . . . . 1 Feedback Events . | . . . . . . . . . . . . . . . . . . . . . . . . . . . . . . . . . . Feedback Blocked . | . . . . . . . . . . . . . . . . . . . . . . . . . . . . . . . . . . Robot Schematics Acquired . | . . . . . . . . . . . . . . . . . . . . . . . . . . . . . . . . . . Robots Built . | . . . . . . . . . . . . . . . . . . . . . . . . . . . . . . . . . . Authchips . | . . . . . . . . . . . . . . . . . . . . . . . . . . . . . . . . . . Time . | . . . . . . . . . . . . . . . . . . . . . . . . . . . . . . . . . . Total Robot Build Rating . | . . . . . . . . . . . . . . . . . . . . . . . . . . . . . . . . . . Part Schematics Acquired 3 | . . . . . . . 2 . . . 1 . . . . . . . . . . . . . . . . . . . . . . Parts Built . | . . . . . . . . . . . . . . . . . . . . . . . . . . . . . . . . . . Authchips . | . . . . . . . . . . . . . . . . . . . . . . . . . . . . . . . . . . Time . | . . . . . . . . . . . . . . . . . . . . . . . . . . . . . . . . . . Total Part Build Rating . | . . . . . . . . . . . . . . . . . . . . . . . . . . . . . . . . . . Parts Repaired 6 | . 2 . 2 . . . 1 . . . . . . . 1 . . . . . . . . . . . . . . . . . . Time 176 | . 52 . 64 . . . 16 . . . . . . . 44 . . . . . . . . . . . . . . . . . . Parts Recycled . | . . . . . . . . . . . . . . . . . . . . . . . . . . . . . . . . . . Recycled Matter . | . . . . . . . . . . . . . . . . . . . . . . . . . . . . . . . . . . Retrieved Matter . | . . . . . . . . . . . . . . . . . . . . . . . . . . . . . . . . . . Retrieved Components 2 | . . . . . . . . . . . . . . . . . . . 2 . . . . . . . . . . . . . . Parts Scanalyzed 3 | . . . 1 . . . 2 . . . . . . . . . . . . . . . . . . . . . . . . . . Part Schematics Acquired 2 | . . . . . . . 2 . . . . . . . . . . . . . . . . . . . . . . . . . . Parts Damaged . | . . . . . . . . . . . . . . . . . . . . . . . . . . . . . . . . . . Bothacking | -11 -10 -10 -9 -9 -9 -8 -8 -8 -8 -8 -8 -8 -7 -7 -7 -7 -7 -7 -6 -6 -6 -6 -6 -5 -5 -5 -5 -4 -4 -3 -2 -2 -1 ------------ Run | Yrd Mat Min Mat Min Exi Min Mat Gar Mat Gar Mat Gar Fac Was Fac Gar Fac Gar Fac Ext Cet Arc Hub Fac Was Fac Gar Fac Gar Res Res DSF Acc Used RIF Installer 10 | . . . . . . . . 1 . 2 . 2 . . . 1 . 1 . . . . . . . . 1 . 2 . . . . Coupler Efficiency 1 | . . . . . . . . . . . . . . . . . . . . . . . . . . . 1 . . . . . . Hotswap 1 | . . . . . . . . . . . . . . . . 1 . . . . . . . . . . . . . . . . . Command Fork 1 | . . . . . . . . . . . . . . . . . . . . . . . . . . . . . 1 . . . . Signal Jammer 1 | . . . . . . . . . . . . . . . . . . . . . . . . . . . . . 1 . . . . Zone Cloak 1 | . . . . . . . . . . 1 . . . . . . . . . . . . . . . . . . . . . . . Structural Interface 1 | . . . . . . . . . . 1 . . . . . . . . . . . . . . . . . . . . . . . Program Shield 1 | . . . . . . . . . . . . 1 . . . . . . . . . . . . . . . . . . . . . Autooverride 1 | . . . . . . . . . . . . . . . . . . 1 . . . . . . . . . . . . . . . Autoassimilate 1 | . . . . . . . . . . . . 1 . . . . . . . . . . . . . . . . . . . . . Robots Hacked 84 | . . . . . . . . . . . 4 . 1 6 . . 2 1 5 2 . . . 1 6 1 9 6 8 8 . 3 21 Non-combat 15 | . . . . . . . . . . . 2 . 1 . . . . 1 1 . . . . 1 . 1 . . . . . . 8 Combat 69 | . . . . . . . . . . . 2 . . 6 . . 2 . 4 2 . . . . 6 . 9 6 8 8 . 3 13 Autooverrided 3 | . . . . . . . . . . . . . . . . . . . . . . . . . . . 1 . . . . 1 1 Autoassimilated 14 | . . . . . . . . . . . . . . . . . . . 1 1 . . . . . . 3 3 1 1 . . 4 Robot Hacks Applied 73 | . . . . . . . . . . . 5 . 1 7 . . 3 3 4 1 . . . 1 6 1 5 4 7 7 . 2 16 parse_system 1 | . . . . . . . . . . . . . . 1 . . . . . . . . . . . . . . . . . . . no_distress 1 | . . . . . . . . . . . . . . . . . . . . . . . . . . 1 . . . . . . . find_chute 3 | . . . . . . . . . . . . . 1 . . . . . 1 . . . . 1 . . . . . . . . . map_walls 1 | . . . . . . . . . . . . . . . . . . . . . . . . . . . . . . . . . 1 purge_threat 2 | . . . . . . . . . . . . . . . . . . 2 . . . . . . . . . . . . . . . block_reporting 1 | . . . . . . . . . . . 1 . . . . . . . . . . . . . . . . . . . . . . map_route 8 | . . . . . . . . . . . 1 . . . . . . . . . . . . . . . . . . . . . 7 ignore_targets 12 | . . . . . . . . . . . . . . 6 . . . . . . . . . . 6 . . . . . . . . find_garrison 3 | . . . . . . . . . . . 1 . . . . . 1 . . . . . . . . . . 1 . . . . . spike_heat 1 | . . . . . . . . . . . . . . . . . . . . . . . . . . . . . . . . . 1 amplify_resonance 2 | . . . . . . . . . . . 1 . . . . . . . . . . . . . . . . . . . . . 1 reboot_system 1 | . . . . . . . . . . . . . . . . . . . . . . . . . . . . . . . . . 1 go_dormant 1 | . . . . . . . . . . . . . . . . . 1 . . . . . . . . . . . . . . . . overwrite_iff 13 | . . . . . . . . . . . 1 . . . . . . . 1 1 . . . . . . 2 2 2 2 . 1 1 formatsys_low 1 | . . . . . . . . . . . . . . . . . . 1 . . . . . . . . . . . . . . . formatsys_high 22 | . . . . . . . . . . . . . . . . . 1 . 2 . . . . . . . 3 1 5 5 . 1 4 Relay Couplers Released 106 | . . . . . . . . 12 . 17 . 9 . . . 15 . 17 . . . . 2 . . . 14 . 13 1 . . 6 Machine Destruction 102 | . . . . . . . . 12 . 17 . 9 . . . 15 . 17 . . . . 2 . . . 14 . 13 1 . . 2 Programmers 4 | . . . . . . . . . . . . . . . . . . . . . . . . . . . . . . . . . 4 Attached 28 | . . . . . . . . . . . 2 1 . 1 1 . 1 2 2 . . . . . 1 . 3 1 4 4 . . 5 Fabnet Peak Effective % . | . . . . . . . . . . . . . . . . . . . . . . . . . . . . . . . . . . Robots Rewired 19 | . . . . . . . . 3 . 4 . . . . . 3 . . 1 8 . . . . . . . . . . . . . Allies Hacked . | . . . . . . . . . . . . . . . . . . . . . . . . . . . . . . . . . . Hacks Repelled . | . . . . . . . . . . . . . . . . . . . . . . . . . . . . . . . . . . Allies | -11 -10 -10 -9 -9 -9 -8 -8 -8 -8 -8 -8 -8 -7 -7 -7 -7 -7 -7 -6 -6 -6 -6 -6 -5 -5 -5 -5 -4 -4 -3 -2 -2 -1 -------- Run | Yrd Mat Min Mat Min Exi Min Mat Gar Mat Gar Mat Gar Fac Was Fac Gar Fac Gar Fac Ext Cet Arc Hub Fac Was Fac Gar Fac Gar Res Res DSF Acc Total Allies 109 | . . . . . . . 1 4 . 4 1 . . 20 . 3 1 2 5 18 5 . . . . . 10 6 8 8 . 3 10 Largest Group 19 | . . . . . . . 1 3 3 4 1 . . 19 17 11 6 2 3 11 15 11 10 . . . 3 3 5 9 3 5 3 Highest-Rated Group 928 | . . . . . . . 10 31 15 96 16 . . 475 405 321 144 51 80 468 928 677 638 . . . 109 154 310 487 195 311 169 Highest-Rated Ally 159 | . . . . . . . 10 31 5 24 16 . . 35 31 31 31 26 32 159 159 96 96 . . . 51 58 116 116 67 67 64 Total Orders 52 | . . . . . . . 3 . . 2 . . . . . . . 10 6 5 . 2 . . . . . 2 18 4 . . . STAY 29 | . . . . . . . 2 . . 1 . . . . . . . 5 4 2 . 1 . . . . . 1 11 2 . . . ROAM 1 | . . . . . . . . . . . . . . . . . . . . 1 . . . . . . . . . . . . . FOLLOW 22 | . . . . . . . 1 . . 1 . . . . . . . 5 2 2 . 1 . . . . . 1 7 2 . . . Ally Attacks 954 | . . . . . . . . 41 51 25 5 . . 74 99 125 36 1 14 38 49 29 154 . . . 30 15 10 65 . 34 59 Total Damage 20929 | . . . . . . . . 501 254 562 73 . . 1296 1210 2040 548 33 238 921 1347 512 4365 . . . 540 447 520 2336 . 1593 1593 Kills 150 | . . . . . . . . 8 5 7 . . . 1 14 21 8 1 2 4 6 4 28 . . . 5 2 6 20 . 2 6 Allies Corrupted 6 | . . . . . . . . . . . . . . 1 . . . . 1 . . . . . . . . 2 . 1 . . 1 Allies Melted 2 | . . . . . . . . . . . . . . . . 1 . . . . . . . . . . 1 . . . . . . Intel | -11 -10 -10 -9 -9 -9 -8 -8 -8 -8 -8 -8 -8 -7 -7 -7 -7 -7 -7 -6 -6 -6 -6 -6 -5 -5 -5 -5 -4 -4 -3 -2 -2 -1 ------- Run | Yrd Mat Min Mat Min Exi Min Mat Gar Mat Gar Mat Gar Fac Was Fac Gar Fac Gar Fac Ext Cet Arc Hub Fac Was Fac Gar Fac Gar Res Res DSF Acc Active Infowar (turns) 18183 | 19 1168 970 1219 444 592 696 . . . . . . . . . . . 216 1514 1791 20 . 563 727 2 588 1395 937 1226 1264 . 20 2812 Sensors 2 | . . 2 . . . . . . . . . . . . . . . . . . . . . . . . . . . . . . . Terrain 1920 | . . . . . . . . . . . . . . . . . . . . . . . . . . . . . . 2 . . 1918 Seismic 5106 | 19 1168 968 1219 444 592 696 . . . . . . . . . . . . . . . . . . . . . . . . . . . Jamming 11155 | . . . . . . . . . . . . . . . . . . 216 1514 1791 20 . 563 727 2 588 1395 937 1226 1262 . 20 894 Robot Analysis Total 4 | . 3 . . . . . 1 . . . . . . . . . . . . . . . . . . . . . . . . . . Derelict Logs Recovered 3 | . . 2 . 1 . . . . . . . . . . . . . . . . . . . . . . . . . . . . . Drone Launches . | . . . . . . . . . . . . . . . . . . . . . . . . . . . . . . . . . . Drone Recoveries . | . . . . . . . . . . . . . . . . . . . . . . . . . . . . . . . . . . Exploration | -11 -10 -10 -9 -9 -9 -8 -8 -8 -8 -8 -8 -8 -7 -7 -7 -7 -7 -7 -6 -6 -6 -6 -6 -5 -5 -5 -5 -4 -4 -3 -2 -2 -1 ------------- Run | Yrd Mat Min Mat Min Exi Min Mat Gar Mat Gar Mat Gar Fac Was Fac Gar Fac Gar Fac Ext Cet Arc Hub Fac Was Fac Gar Fac Gar Res Res DSF Acc Turns Passed 39232 | 81 1485 1025 1981 492 598 1211 3165 1316 527 1980 1128 1303 344 916 792 1630 238 1749 2096 2196 648 1120 748 728 187 756 1395 979 1315 1363 26 194 3520 Spaces Moved 19095 | 37 738 499 915 341 379 490 1407 842 347 1232 510 715 250 530 424 858 111 814 668 1073 302 533 381 340 110 323 681 414 669 735 18 76 1333 Core 9 | . . . . . . . . . . . . . . . . . . . . . . . . . . . . . . . . . 9 Treads 9165 | . . . . . . . . . . . . . . 362 424 858 111 814 668 1073 302 533 381 340 110 323 681 414 669 735 18 7 342 Legs 8886 | 37 738 499 915 341 379 490 1407 842 347 1232 510 715 250 168 . . . . . . . . . . . . . . . . . . 16 Wheels 1035 | . . . . . . . . . . . . . . . . . . . . . . . . . . . . . . . . 69 966 Hover . | . . . . . . . . . . . . . . . . . . . . . . . . . . . . . . . . . . Flight . | . . . . . . . . . . . . . . . . . . . . . . . . . . . . . . . . . . Fastest Speed 100 | 120 120 190 120 120 120 190 112 112 112 112 120 112 112 112 160 160 160 160 160 160 160 160 160 160 160 160 145 152 145 145 145 145 100 Average Speed 149 | 120 162 190 120 120 156 190 119 116 112 114 120 117 123 145 160 160 176 160 160 160 161 160 160 160 160 205 158 152 146 159 145 175 200 Slowest Speed 2250 | 120 190 190 190 120 190 190 187 187 112 120 120 190 187 190 160 160 240 160 240 160 240 160 160 160 160 240 160 152 225 225 145 225 2250 Overloaded Moves . | . . . . . . . . . . . . . . . . . . . . . . . . . . . . . . . . . . Propulsion Burnouts . | . . . . . . . . . . . . . . . . . . . . . . . . . . . . . . . . . . Robots Hopped . | . . . . . . . . . . . . . . . . . . . . . . . . . . . . . . . . . . Potential Cave-ins 2 | . . . . . . . . . . . . . . . . . . . 1 . 1 . . . . . . . . . . . . Cave-ins Triggered 1 | . . . . . . . . . . . . . . . . . . . 1 . . . . . . . . . . . . . . Exploration Rate (%) 55 | 3 94 97 77 48 70 84 71 93 34 83 47 77 8 95 16 93 6 97 20 89 60 94 36 7 82 11 89 8 70 23 1 69 37 Regions Visited 33 Branch Regions 8 Pre-discovered Areas 2 | . . . . . 1 . . . . . . . . . 1 . . . . . . . . . . . . . . . . . . Known Exits Taken 12 | . . . 1 . . 1 1 . 1 . 1 . . . 1 . 1 . 1 . . . . . . 1 . 1 . 1 1 . . Unknown Exits Taken 9 | 1 1 1 . 1 1 . . . . . . . . . . . . . . 1 1 1 1 . . . . . . . . . . Scrap Searched 6 | . . 3 . 1 . 2 . . . . . . . . . . . . . . . . . . . . . . . . . . . Spaces Dug 224 | . 1 1 28 8 . 11 38 23 8 . 17 1 1 . 3 . 2 . 25 3 . . 6 2 . 3 . 9 1 3 . . 30 Terrain Destroyed 969 | . 1 52 59 78 . 21 46 86 8 7 45 6 1 3 3 . 3 . 28 53 18 7 19 17 . 26 85 70 45 63 . 5 114 Melee 85 | . . 1 12 . . . 32 4 . . 6 1 1 . 3 . 1 . 5 . . . . 2 . 2 . 8 1 1 . . 5 Projectile 235 | . 1 . . . . . . . . . 26 . . 3 . . 2 . 19 7 . 7 11 15 . 5 7 30 11 9 . 5 77 AOE 648 | . . 51 47 78 . 21 14 82 8 7 13 5 . . . . . . 4 46 18 . 8 . . 19 77 32 33 53 . . 32 Terrain Rammed . | . . . . . . . . . . . . . . . . . . . . . . . . . . . . . . . . . . Walls Destroyed . | . . . . . . . . . . . . . . . . . . . . . . . . . . . . . . . . . . Machines Disabled . | . . . . . . . . . . . . . . . . . . . . . . . . . . . . . . . . . . Actions | -11 -10 -10 -9 -9 -9 -8 -8 -8 -8 -8 -8 -8 -7 -7 -7 -7 -7 -7 -6 -6 -6 -6 -6 -5 -5 -5 -5 -4 -4 -3 -2 -2 -1 --------- Run | Yrd Mat Min Mat Min Exi Min Mat Gar Mat Gar Mat Gar Fac Was Fac Gar Fac Gar Fac Ext Cet Arc Hub Fac Was Fac Gar Fac Gar Res Res DSF Acc Total 27225 | 51 945 552 1623 399 385 757 2705 1095 466 1675 904 1038 278 631 527 994 136 1098 1584 1421 436 725 463 478 118 384 881 665 897 864 18 132 1900 Wait 4780 | . 107 21 495 29 . 253 1038 117 76 200 259 172 10 14 73 49 6 149 748 211 60 135 35 93 . 15 51 146 64 6 . . 148 Move 19070 | 36 737 498 914 340 378 489 1407 841 347 1231 510 714 250 529 423 856 111 813 667 1072 301 532 380 340 109 323 680 414 668 734 17 76 1333 Hop . | . . . . . . . . . . . . . . . . . . . . . . . . . . . . . . . . . . Pick Up 296 | 3 15 1 17 1 4 2 27 6 2 14 3 15 3 12 3 5 . 7 13 15 11 2 . 6 . 8 17 4 23 19 . 7 31 Fast Attach 156 | . 7 2 5 . . . 7 1 3 7 1 6 . 3 6 2 . 9 16 4 9 7 . . . 1 7 9 10 7 . 5 22 Attach 121 | 1 . . 4 . . 1 6 . . 4 . 6 2 1 . 2 1 3 6 7 1 1 1 2 . 1 5 3 13 4 1 3 42 Detach 45 | . . . . . . . . . . . . 1 . 1 . 2 . 5 4 2 2 2 . . . . 4 4 4 1 . 6 7 Swap 617 | . 17 12 66 11 3 5 50 38 9 50 32 16 6 6 9 16 6 21 44 20 10 3 9 11 2 9 31 21 33 28 . 2 21 Drop 348 | . 21 5 31 3 . . 36 10 10 32 4 11 2 14 8 6 . 11 26 10 21 3 . 3 . 7 19 9 13 18 . 10 5 Fire 1444 | 11 40 12 73 15 . 6 80 45 19 84 86 79 3 45 2 38 10 72 52 75 9 35 29 19 7 13 62 44 58 33 . 21 267 Melee 227 | . . 1 17 . . . 54 11 . 15 6 7 2 6 3 9 1 8 7 . 12 5 1 4 . 7 3 10 11 7 . . 20 Ram 5 | . . . . . . . . . . . . . . . . . . . . . . . . . . . . . . . . 2 3 Kick 9 | . 1 . 1 . . 1 . . . 2 3 1 . . . . . . . . . . . . . . . . . . . . . Crush 24 | . . . . . . . . . . . . . . . . . . . 1 5 . . 8 . . . 2 1 . 7 . . . Escape Stasis 30 | . . . . . . . . 5 . 15 . 10 . . . . . . . . . . . . . . . . . . . . . Rewire 53 | . . . . . . . . 21 . 21 . . . . . 9 1 . . . . . . . . . . . . . . . 1 Trap . | . . . . . . . . . . . . . . . . . . . . . . . . . . . . . . . . . . Miscellaneous . | . . . . . . . . . . . . . . . . . . . . . . . . . . . . . . . . . . Route ------- -11/Scrapyard -10/Materials (discovered 5 exits: *Mat x3 / [*Min] / [*Sub]) -10/Mines (discovered 2 exits: *Mat x2) -9/Materials (discovered 5 exits: *Mat x2 / *Min x2 / [*Sto]) -9/Mines -9/Exiles (discovered 2 exits: [*Min x2]) -8/Mines -8/Materials (discovered 3 exits: *Fac x2 / Gar) -8/Garrison (discovered 4 exits: *Mat x4) -8/Materials (discovered 2 exits: *Fac / Gar) -8/Garrison (discovered 4 exits: *Fac x3 / *Mat) -8/Materials -8/Garrison (discovered 2 exits: *Fac x2) -7/Factory -7/Waste -7/Factory (discovered 4 exits: *Fac x2 / [*Low] / Gar) -7/Garrison (discovered 3 exits: *Fac x3) -7/Factory -7/Garrison (discovered 3 exits: *Fac x3) -6/Factory (discovered 4 exits: *Low x2 / *Ext x2) -6/Extension (discovered 2 exits: *Fac / *Cet) -6/Cetus (discovered 2 exits: *Fac / [*Arc]) -6/Archives (discovered 3 exits: *Fac / *Hub x2) -6/Hub_04(d) (discovered 2 exits: *Fac x2) -5/Factory -5/Waste -5/Factory (discovered 3 exits: *Fac / *Upp / Gar) -5/Garrison (discovered 3 exits: *Fac x3) -4/Factory -4/Garrison (discovered 3 exits: *Res x3) -3/Research (discovered 2 exits: *Res / *Qua) -2/Research -2/DSF -1/Access History --------- Turn | Location | Event 16 | -11/Scrapyard | Discovered new exit (range 3) 82 | -11/Scrapyard | Entered Materials 328 | -10/Materials | Build established: Mutant 488 | -10/Materials | Discovered new exit (range 9) 803 | -10/Materials | Discovered new exit (range 10) 941 | -10/Materials | Discovered new exit (range 16) 982 | -10/Materials | Discovered new exit (range 16) 1123 | -10/Materials | Discovered new exit (range 6) 1233 | -10/Materials | Repaired Lgt. Cannon 1261 | -10/Materials | Repaired Lgt. Cannon 1359 | -10/Materials | Central database locked down 1567 | -10/Materials | Entered Mines 1650 | -10/Mines | Met a Derelict bent on vengeance 1656 | -10/Mines | Discovered new exit (range 9) 1673 | -10/Mines | Learned 4 Materials zone layouts 2434 | -10/Mines | Joined a pair of Derelicts in attacking an 0b10 outpost 2445 | -10/Mines | Learned Materials stockpile data 2518 | -10/Mines | Discovered new exit (range 10) 2522 | -10/Mines | Found a damaged Exp. Sensor Array with a note attached 2526 | -10/Mines | Found Prototype Device 2526 | -10/Mines | Identified Exp. Sensor Array 2592 | -10/Mines | Entered Materials 2592 | -9/Materials | Evolved 2 slots: Propulsion x1, Utility x1 2593 | -9/Materials | Identified exit to Materials 2593 | -9/Materials | Identified exit to Mines 2988 | -9/Materials | Repaired Lgt. Armor Plating 3132 | -9/Materials | Build established: Scavenger-Mutant 3389 | -9/Materials | Discovered exit to Mines (range 8) 3531 | -9/Materials | Discovered exit to Materials (range 3) 3605 | -9/Materials | Discovered new exit (range 16) 4029 | -9/Materials | Build established: Mutant 4163 | -9/Materials | Repaired Imp. Light Armor Plating? 4573 | -9/Materials | Entered Mines 4593 | -9/Mines | Learned location of 1 exit from Proximity Caves 4603 | -9/Mines | Build established: Scavenger-Mutant 4666 | -9/Mines | Found a Scrap Suit stashed away for nefarious purposes 4725 | -9/Mines | Assembled infested the area 4887 | -9/Mines | Met a Derelict shopkeep closing up shop 5051 | -9/Mines | Deemed a non-threat by the Exiles lab entrance 5052 | -9/Mines | Discovered new exit (range 5) 5065 | -9/Mines | Entered Exiles 5081 | -9/Exiles | Discovered new exit (range 15) 5098 | -9/Exiles | Met 8R-AWN 5115 | -9/Exiles | Met EX-HEX 5183 | -9/Exiles | Met EX-DEC 5205 | -9/Exiles | Learned location of Zion (-6) 5230 | -9/Exiles | Met EX-BIN 5244 | -9/Exiles | Aligned with FarCom system 5245 | -9/Exiles | Given EX-Vault access code 5278 | -9/Exiles | Opened EX-Vault 5288 | -9/Exiles | Found Trap Reconfigurator 5329 | -9/Exiles | Warned to stay clear of 0b10 Research branches 5638 | -9/Exiles | Discovered new exit (range 14) 5663 | -9/Exiles | Left Exiles lab with Trap Reconfigurator 5663 | -9/Exiles | Entered Mines 6569 | -8/Mines | Discovered exit to Materials (range 10) 6662 | -8/Mines | Build established: Mutant 6874 | -8/Mines | Entered Materials 6874 | -8/Materials | Evolved 2 slots: Propulsion x1, Weapon x1 7824 | -8/Materials | Repaired Rocket Launcher 8109 | -8/Materials | Discovered new exit (range 11) 8842 | -8/Materials | Discovered new exit (range 3) 9324 | -8/Materials | Build established: Tank 9698 | -8/Materials | Garrison activated, responded to threat 10036 | -8/Materials | Identified exit to Garrison 10039 | -8/Materials | Entered Garrison 10105 | -8/Garrison | Rescued a captive Derelict 10214 | -8/Garrison | Triggered checkpoint 10470 | -8/Garrison | Discovered new exit (range 10) 10573 | -8/Garrison | Triggered checkpoint 10617 | -8/Garrison | Phase Generator disabled 10646 | -8/Garrison | Garrison Relay disabled 10699 | -8/Garrison | Triggered checkpoint 10768 | -8/Garrison | Discovered new exit (range 9) 10827 | -8/Garrison | Triggered checkpoint 10893 | -8/Garrison | Discovered new exit (range 37) 10893 | -8/Garrison | Discovered new exit (range 62) 10893 | -8/Garrison | Discovered new exit (range 20) 10893 | -8/Garrison | Discovered new exit (range 41) 10949 | -8/Garrison | Garrison Relay disabled 11051 | -8/Garrison | Triggered checkpoint 11220 | -8/Garrison | Installed Relay Interface Framework 11239 | -8/Garrison | Garrison Relay disabled 11315 | -8/Garrison | Triggered checkpoint 11355 | -8/Garrison | Entered Materials 11355 | -8/Materials | Accompanied by 3 allies 11766 | -8/Materials | Discovered new exit (range 14) 11882 | -8/Materials | Identified exit to Garrison 11882 | -8/Materials | Entered Garrison 12144 | -8/Garrison | Triggered checkpoint 12213 | -8/Garrison | Triggered checkpoint 12398 | -8/Garrison | Triggered checkpoint 12413 | -8/Garrison | Discovered new exit (range 11) 12447 | -8/Garrison | Garrison Relay disabled 12637 | -8/Garrison | Triggered checkpoint 12687 | -8/Garrison | Garrison Relay disabled 12811 | -8/Garrison | Triggered checkpoint 12890 | -8/Garrison | Triggered checkpoint 12910 | -8/Garrison | Triggered checkpoint 12952 | -8/Garrison | Expanded RIF knowledge: Zone Cloak 12987 | -8/Garrison | Garrison Relay disabled 13042 | -8/Garrison | Discovered new exit (range 13) 13196 | -8/Garrison | Triggered checkpoint 13276 | -8/Garrison | Triggered checkpoint 13363 | -8/Garrison | Garrison Relay disabled 13446 | -8/Garrison | Discovered new exit (range 6) 13564 | -8/Garrison | Triggered checkpoint 13647 | -8/Garrison | Expanded RIF knowledge: Structural Interface 13691 | -8/Garrison | Build established: Scavenger-Skirmisher 13744 | -8/Garrison | Discovered new exit (range 12) 13862 | -8/Garrison | Entered Materials 14262 | -8/Materials | First assault squad dispatched 14990 | -8/Materials | Identified exit to Garrison 14990 | -8/Materials | Entered Garrison 15070 | -8/Garrison | Triggered checkpoint 15140 | -8/Garrison | Garrison Relay disabled 15229 | -8/Garrison | System corruption reached 10% 15307 | -8/Garrison | Triggered checkpoint 15454 | -8/Garrison | Lost 7 parts (1p3n3w) 15597 | -8/Garrison | Discovered new exit (range 10) 15634 | -8/Garrison | Triggered checkpoint 15695 | -8/Garrison | Build established: Scavenger-Mutant 15763 | -8/Garrison | Expanded RIF knowledge: Autoassimilate 15784 | -8/Garrison | Garrison Relay disabled 15886 | -8/Garrison | Triggered checkpoint 15981 | -8/Garrison | Discovered new exit (range 11) 16000 | -8/Garrison | Triggered checkpoint 16030 | -8/Garrison | Garrison Relay disabled 16056 | -8/Garrison | Expanded RIF knowledge: Program Shield 16155 | -8/Garrison | Core integrity fell below 50% 16293 | -8/Garrison | Entered Factory 16293 | -7/Factory | Evolved 2 slots: Utility x2 16421 | -7/Factory | Discovered new exit (range 15) 16635 | -7/Factory | Garrison activated, responded to threat 16637 | -7/Factory | Sucked down chute 16637 | -7/Factory | Entered Waste 16638 | -7/Waste | Met a frightened Derelict 16648 | -7/Waste | Spotted C-40 Crusher 16649 | -7/Waste | Spotted C-40 Crusher 16663 | -7/Waste | Found Prototype Processor 16680 | -7/Waste | Spotted C-40 Crusher 16682 | -7/Waste | Spotted C-40 Crusher 16709 | -7/Waste | Spotted C-40 Crusher 16711 | -7/Waste | Spotted C-40 Crusher 16752 | -7/Waste | Discovered new exit (range 13) 16810 | -7/Waste | Destroyed C-40 Crusher 16882 | -7/Waste | Destroyed C-40 Crusher 16968 | -7/Waste | Destroyed C-40 Crusher 17003 | -7/Waste | Destroyed C-40 Crusher 17033 | -7/Waste | Destroyed C-40 Crusher 17103 | -7/Waste | Warlord forces began an assault 17185 | -7/Waste | Build established: Scavenger-Tank 17509 | -7/Waste | Build established: Scavenger-Mutant 17553 | -7/Waste | Entered Factory 17553 | -7/Factory | Accompanied by 17 allies 17653 | -7/Factory | Repaired Gatling Laser 17964 | -7/Factory | Discovered new exit (range 15) 18144 | -7/Factory | Discovered new exit (range 6) 18205 | -7/Factory | Lost 3 allies 18247 | -7/Factory | Discovered new exit (range 16) 18320 | -7/Factory | Identified exit to Garrison 18345 | -7/Factory | Entered Garrison 18345 | -7/Garrison | Accompanied by 11 allies 18373 | -7/Garrison | Triggered checkpoint 18427 | -7/Garrison | Identified Exp. Signal Interpreter 18469 | -7/Garrison | Garrison Relay disabled 18739 | -7/Garrison | Triggered checkpoint 18765 | -7/Garrison | Triggered checkpoint 18835 | -7/Garrison | Learned Factory security intel 18843 | -7/Garrison | Triggered checkpoint 18930 | -7/Garrison | Garrison Relay disabled 18970 | -7/Garrison | Discovered new exit (range 13) 19003 | -7/Garrison | Expanded RIF knowledge: Hotswap 19217 | -7/Garrison | Triggered checkpoint 19294 | -7/Garrison | Garrison Relay disabled 19389 | -7/Garrison | Triggered checkpoint 19454 | -7/Garrison | Lost 3 allies 19544 | -7/Garrison | Discovered new exit (range 13) 19692 | -7/Garrison | Build established: Scavenger-Tank 19720 | -7/Garrison | Discovered new exit (range 10) 19734 | -7/Garrison | Triggered checkpoint 19764 | -7/Garrison | Triggered checkpoint 19785 | -7/Garrison | Garrison Relay disabled 19975 | -7/Garrison | Entered Factory 19975 | -7/Factory | Accompanied by 6 allies 20035 | -7/Factory | Assembled infested ambush trap array 20106 | -7/Factory | Lost 7 allies 20213 | -7/Factory | Identified exit to Garrison 20213 | -7/Factory | Entered Garrison 20255 | -7/Garrison | Garrison Relay disabled 20365 | -7/Garrison | Triggered checkpoint 20457 | -7/Garrison | Triggered checkpoint 20551 | -7/Garrison | Triggered checkpoint 20645 | -7/Garrison | Heavy support dispatched to Factory 20710 | -7/Garrison | Discovered new exit (range 8) 20731 | -7/Garrison | H-XX Assembler disabled 20927 | -7/Garrison | Triggered checkpoint 21019 | -7/Garrison | Triggered checkpoint 21022 | -7/Garrison | Garrison Relay disabled 21134 | -7/Garrison | Rescued a captive Derelict 21186 | -7/Garrison | Triggered checkpoint 21212 | -7/Garrison | Discovered new exit (range 15) 21392 | -7/Garrison | Triggered checkpoint 21474 | -7/Garrison | Discovered new exit (range 9) 21494 | -7/Garrison | Triggered checkpoint 21531 | -7/Garrison | Garrison Relay disabled 21591 | -7/Garrison | Garrison Relay disabled 21743 | -7/Garrison | Triggered checkpoint 21802 | -7/Garrison | Expanded RIF knowledge: Autooverride 21821 | -7/Garrison | Garrison Relay disabled 21962 | -7/Garrison | Entered Factory 21962 | -6/Factory | Accompanied by 2 allies 21962 | -6/Factory | Evolved 2 slots: Utility x2 22279 | -6/Factory | Identified exit to Lower Caves 22279 | -6/Factory | Identified exit to Extension 22988 | -6/Factory | Crushed by falling debris 22988 | -6/Factory | System corruption reached 10% 23019 | -6/Factory | Lost 3 parts (3u) 23674 | -6/Factory | Cargo convoy interrupted 23719 | -6/Factory | Found Prototype Launcher 23719 | -6/Factory | Identified Mni. Smartbomb Launcher 23734 | -6/Factory | Found PL-3XN's Ring of Power 23742 | -6/Factory | Found Prototype Device 23743 | -6/Factory | Identified Exp. Focal Shield 23783 | -6/Factory | Found Prototype Device 23783 | -6/Factory | Identified Exp. Shield Generator 23804 | -6/Factory | Found Exp. Shield Generator 24008 | -6/Factory | Build established: Tank 24058 | -6/Factory | Entered Extension 24058 | -6/Extension | Accompanied by 1 ally 24573 | -6/Extension | Spotted B-75 Beast 24850 | -6/Extension | Rescued a captive Derelict 24862 | -6/Extension | Rescued a captive Derelict 24877 | -6/Extension | Build established: Mutant 25308 | -6/Extension | Build established: Tank 25340 | -6/Extension | Destroyed B-75 Beast 25369 | -6/Extension | Spotted B-75 Beast 25427 | -6/Extension | Destroyed B-75 Beast 25502 | -6/Extension | Rescued a captive Derelict 25513 | -6/Extension | Rescued a captive Derelict 25969 | -6/Extension | Build established: Commander-Tank 25972 | -6/Extension | Rescued A7 26100 | -6/Extension | Rescued a captive Derelict 26103 | -6/Extension | Rescued a captive Derelict 26164 | -6/Extension | Rescued a captive Derelict 26208 | -6/Extension | Discovered new exit (range 10) 26209 | -6/Extension | Discovered new exit (range 6) 26254 | -6/Extension | Entered Cetus 26254 | -6/Cetus | Accompanied by 11 allies (A7) 26259 | -6/Cetus | Acquired a Cetus Manufacturing Module code from A7 26278 | -6/Cetus | Spotted Cetus Guard 26278 | -6/Cetus | Spotted Cetus Guard 26281 | -6/Cetus | Spotted Cetus Guard 26283 | -6/Cetus | Spotted Cetus Guard 26284 | -6/Cetus | Allies destroyed Cetus Guard 26287 | -6/Cetus | Destroyed Cetus Guard 26296 | -6/Cetus | Destroyed Cetus Guard 26297 | -6/Cetus | Allies destroyed Cetus Guard 26380 | -6/Cetus | System corruption reached 30% 26478 | -6/Cetus | Started Cetus Manufacturing Module 26503 | -6/Cetus | Manufactured an Enhanced Grunt 26528 | -6/Cetus | Manufactured an Enhanced Grunt 26553 | -6/Cetus | Manufactured an Enhanced Grunt 26578 | -6/Cetus | Manufactured an Enhanced Grunt 26603 | -6/Cetus | Manufactured an Enhanced Grunt 26636 | -6/Cetus | Discovered new exit (range 16) 26669 | -6/Cetus | Spotted Cetus Guard 26670 | -6/Cetus | Spotted Cetus Guard 26673 | -6/Cetus | Spotted Cetus Guard 26675 | -6/Cetus | Spotted Cetus Guard 26685 | -6/Cetus | Allies destroyed Cetus Guard 26688 | -6/Cetus | Allies destroyed Cetus Guard 26688 | -6/Cetus | Destroyed Cetus Guard 26693 | -6/Cetus | Allies destroyed Cetus Guard 26697 | -6/Cetus | Discovered new exit (range 15) 26707 | -6/Cetus | Met Revision 17 26719 | -6/Cetus | Lost 3 allies 26745 | -6/Cetus | Murdered A7 26757 | -6/Cetus | Extracted ID and sensor layout for unrecognized location from A7's data core 26780 | -6/Cetus | Found Prototype Protection 26780 | -6/Cetus | Identified Med. Regenerative Plating 26902 | -6/Cetus | Entered Archives 26902 | -6/Archives | Accompanied by 11 allies 26971 | -6/Archives | Discovered new exit (range 14) 27025 | -6/Archives | Discovered new exit (range 15) 27142 | -6/Archives | Discovered new exit (range 16) 27637 | -6/Archives | Build established: Commander-Mutant 28022 | -6/Archives | Entered Hub_04(d) 28022 | -6/Hub_04(d) | Accompanied by 10 allies 28086 | -6/Hub_04(d) | Discovered new exit (range 10) 28238 | -6/Hub_04(d) | Build established: Commander-Tank 28351 | -6/Hub_04(d) | Spotted B-75 Beast 28370 | -6/Hub_04(d) | Allies destroyed B-75 Beast 28429 | -6/Hub_04(d) | Discovered new exit (range 5) 28520 | -6/Hub_04(d) | Identified exit to Garrison 28701 | -6/Hub_04(d) | Garrison activated, responded to threat 28722 | -6/Hub_04(d) | First assault squad dispatched 28770 | -6/Hub_04(d) | Entered Factory 28770 | -5/Factory | Evolved 2 slots: Power x1, Utility x1 28777 | -5/Factory | Lost 4 allies 28959 | -5/Factory | Build established: Scavenger-Tank 29075 | -5/Factory | Identified exit to DSF 29236 | -5/Factory | System corruption reached 10% 29498 | -5/Factory | Sucked down chute 29498 | -5/Factory | Entered Waste 29513 | -5/Waste | EMP discharged 29547 | -5/Waste | Spotted C-40 Crusher 29562 | -5/Waste | Spotted C-40 Crusher 29572 | -5/Waste | Spotted C-40 Crusher 29613 | -5/Waste | EMP discharged 29617 | -5/Waste | Spotted C-40 Crusher 29626 | -5/Waste | Spotted C-40 Crusher 29661 | -5/Waste | Discovered new exit (range 11) 29661 | -5/Waste | Spotted C-40 Crusher 29685 | -5/Waste | Entered Factory 29880 | -5/Factory | Discovered new exit (range 7) 29985 | -5/Factory | Identified exit to Upper Caves 29987 | -5/Factory | Discovered new exit (range 9) 30234 | -5/Factory | Build established: Scavenger-Mutant 30417 | -5/Factory | System corruption reached 30% 30441 | -5/Factory | Identified exit to Garrison 30441 | -5/Factory | Entered Garrison 30699 | -5/Garrison | Build established: Scavenger-Tank 30775 | -5/Garrison | Triggered checkpoint 30809 | -5/Garrison | Triggered checkpoint 30858 | -5/Garrison | Lost 3 allies 31022 | -5/Garrison | Discovered new exit (range 10) 31029 | -5/Garrison | Triggered checkpoint 31061 | -5/Garrison | Garrison Relay disabled 31242 | -5/Garrison | Garrison Relay disabled 31253 | -5/Garrison | Triggered checkpoint 31282 | -5/Garrison | Spotted Executioner 31282 | -5/Garrison | Spotted Executioner 31300 | -5/Garrison | Discovered new exit (range 2) 31339 | -5/Garrison | Rescued a captive Derelict 31565 | -5/Garrison | Triggered checkpoint 31599 | -5/Garrison | Garrison Relay disabled 31630 | -5/Garrison | Spotted B-75 Beast 31645 | -5/Garrison | Allies destroyed B-75 Beast 31674 | -5/Garrison | Lost 3 allies 31801 | -5/Garrison | Discovered new exit (range 10) 31821 | -5/Garrison | Expanded RIF knowledge: Coupler Efficiency 31836 | -5/Garrison | Entered Factory 31836 | -4/Factory | Accompanied by 1 ally 31836 | -4/Factory | Evolved 2 slots: Utility x2 31896 | -4/Factory | Build established: Scavenger-Mutant 32086 | -4/Factory | First assault squad dispatched 32138 | -4/Factory | Found Prototype Processor 32138 | -4/Factory | Identified Exp. Signal Interpreter 32507 | -4/Factory | Lost 3 allies 32766 | -4/Factory | Build established: Scavenger-Tank 32815 | -4/Factory | Identified exit to Garrison 32815 | -4/Factory | Entered Garrison 32895 | -4/Garrison | Triggered checkpoint 32962 | -4/Garrison | Garrison Relay disabled 33045 | -4/Garrison | Discovered new exit (range 60) 33045 | -4/Garrison | Discovered new exit (range 56) 33045 | -4/Garrison | Discovered new exit (range 39) 33109 | -4/Garrison | Triggered checkpoint 33188 | -4/Garrison | Lost 7 parts (2p1n2u2w) 33277 | -4/Garrison | System corruption reached 10% 33324 | -4/Garrison | Spotted B-86 Titan 33335 | -4/Garrison | Assimilated Titan 7a with formatsys_high 33349 | -4/Garrison | Triggered checkpoint 33355 | -4/Garrison | Triggered checkpoint 33563 | -4/Garrison | Build established: Scavenger-Gunner 33594 | -4/Garrison | Expanded RIF knowledge: Signal Jamming 33667 | -4/Garrison | Garrison Relay disabled 33849 | -4/Garrison | Triggered checkpoint 33890 | -4/Garrison | Expanded RIF knowledge: Command Fork 33921 | -4/Garrison | Garrison Relay disabled 33972 | -4/Garrison | Build established: Botlord-Gunner 34130 | -4/Garrison | Entered Research 34130 | -3/Research | Accompanied by 5 allies 34130 | -3/Research | Evolved 2 slots: Power x1, Utility x1 34330 | -3/Research | Revision forces began assault on 0b10 34355 | -3/Research | Met up with Revision 17++ 34512 | -3/Research | Lost 5 allies 34830 | -3/Research | Research terminal network offline 35213 | -3/Research | Discovered new exit (range 15) 35248 | -3/Research | Identified exit to Quarantine 35337 | -3/Research | Spotted Striker 35343 | -3/Research | Destroyed Striker 35344 | -3/Research | Discovered new exit (range 10) 35370 | -3/Research | Lost 8 allies 35438 | -3/Research | Identified exit to Research 35493 | -3/Research | Entered another Research area 35493 | -2/Research | Accompanied by 3 allies 35493 | -2/Research | Evolved 2 slots: Propulsion x2 35519 | -2/Research | Identified exit to DSF 35519 | -2/Research | Entered DSF 35519 | -2/DSF | Accompanied by 3 allies 35533 | -2/DSF | Additional patrols routed to DSF 35555 | -2/DSF | Found Quantum Capacitor 35675 | -2/DSF | Discovered new exit (range 11) 35713 | -2/DSF | Entered Access 35713 | -1/Access | Evolved 2 slots: Utility x2 36311 | -1/Access | Build established: Botlord-Assassin 37434 | -1/Access | Lost 3 parts (2n1w) 37680 | -1/Access | Build established: Scavenger-Gunner 37882 | -1/Access | System corruption reached 10% 37950 | -1/Access | Lost 11 parts (3p3n2u3w) 38239 | -1/Access | System corruption reached 30% 38269 | -1/Access | Lost 5 parts (1n3u1w) 38367 | -1/Access | Lost 3 parts (1p1n1w) 38550 | -1/Access | Garrison activated, responded to threat 38651 | -1/Access | Core integrity fell below 50% 38663 | -1/Access | Lost 14 parts (1p4n6u3w) 39119 | -1/Access | Lost 3 parts (1n1u1w) 39197 | -1/Access | Core integrity fell below 20% 39233 | -1/Access | Destroyed by Y-72 Warden with Quantum Rifle Last Messages --------------- 39220_ System corrupted: Energy discharge (-26). 39220_ K-01 Serf collects debris. 39220_ Relay Coupler [NC] destroyed. 39220_ Penetrated by Slug. 39220_ Slug penetrates Sealed Barrier. 39221_ R-10 Processor collects Unknown Ballistic Gun. 39222_ K-01 Serf collects debris. 39223_ Penetrated by Slug. 39226_ K-01 Serf collects debris. 39226_ Penetrated by Slug. 39227_ K-01 Serf collects debris. 39229_ R-10 Processor collects Adv. Target Analyzer. 39230_ K-01 Serf collects debris. 39230_ Penetrated by Slug. 39230_ Slug penetrates Sealed Barrier. 39233_ K-01 Serf collects debris. 39233_ R-10 Processor collects Sml. Battery. 39233_ K-01 Serf collects debris. Map ----- +----------------------------------------------------+ | ?????????????????????????????????????????????????? | | ??????????????????????? ?????????????????????????? | | ?????????????????????????????????????????????????? | | ??????????????????#????????????? ????????????????? | | ????????????? ????????????????? ?????????????????? | | ????????? ??????????????????????????????????????? | | ???? ????????????????? ???#??????????????????????? | | ????????????? ??? ? ?? ? #?????????? ???????????? | | ?????????? ????? ???? ?? +? ??????????????????? | | ???????#? ???????? ? ? ?? #?? ????????? ?????????? | | ?? ??? ?????????????????? #??????? ? ????????????? | | ????? ?????#???#?#???#?? ##?????? ??????#???????? | | ?????????????##########?# #?? ? ?????????????????? | | ?????? ?????# " ##? ##?? ???????? ?????????? | | ?????????????# """ #?? #????????#???#?????????? | | ? ??????? ???# """ ### ####?#? ? ?????#???????? | | ?? ??????????# " # ???? ????#??????????? | | ?????????????# # ?? ?????#???#???? ???? | | ??????? ??#?# # #?#??#? ?????#????????? | | ????? ????#??# / ##??#????#?????#????????? | | ?????? ??????# # ##????#???????##??? ?? ?? | | ? ????? ??#??# # #???#?#?????????????????? | | ????""? ??############# #??????????????#???##???? | | ???????? ?# #?# %#??#????##????????#?????? | | ?? ???????# #?# #######"??#??????#??????? | | ???"??????# #?# Y@%! "???? ???????????? | | ??????????# #?# k[=* ""?????? ???"?????? | | ?? ????? ####+######?# % != !!"?????????"??????? | | ?? ??????#??# ###?#?## % |!!"??"?????????????? | | ?????#??# ##????## ]!"?????"?????"????? | | ? ??????#### ###?#??# !"? ? ????????? ??? | | ????? ## #????# R "????? ???????? ?? | | ### ? ????## #????# !! " ????????"??????? | | [########## #??#?#!k!! "????????????"???? | | #????????# ##??##[*! "? ?????????????? | | #?#??????# #??### |#######"?##?????????????? | | ###?##???### ####???#[=????#????????????#??????? | | ##########?# #?#?#??#! ?#?????#????????????????? | | # #?# ##???#?# ?????#??????????#???????? | | # #?# ###??#?# ???????????????????#????? | | + "" #?# #????#?# #?##?#?????#???#????????? | | [# """#?# #??#??## ?#?????#????????????????? | | [ # T"#?# #??#???# ?? ? ?? ?????? ?????????? | | ! # """#?# #??????? ? ?? ?? ????? ? ?????? | | ### "" #?# #????#################?? ???????? | | ??# #?# ##???# #? ???????? | | ??# #?# #?##?# ?# ???????? | | #####/######## #??#?# * ## ???????? | | %* * #????# ! ## ???????? | | ## ############### ] ## ?#?????? | +----------------------------------------------------+ Best States ------------- Heat Dissipation 117 Coolant Potential 180 Energy Generation 75 Energy Capacity 850 Matter Stores 300 Matter Capacity 300 Sight Range 16 Terrain Scan Range 20 Terrain Scan Density 10 Jamming Range 16 Power Amplification 30 Base Temperature (-) 200 EM Shielding 3 Armor Coverage 1350 Resistance: KI 30 Resistance: EM 15 Weapon Shielding 66 Point Defense Rating 240 Weapon Cycling 15 Phase Shifting 10 Evasion (%) 63 Targeting Accuracy 8 Target Analysis 12 Core Analysis 6 Recoil Reduction 10 Matter Filtering 50 Offensive Hacking 14 Relay Coupler Types 3 Relay Coupler Value 85 Authchip Count 1 Item Schematics ----------------- Aluminum Leg | -8/Materials | Scanalyzed Hpw. Tractor Beam | -8/Materials | Scanalyzed Huge Storage Unit | -8/Materials | Hacked Robot Schematics ------------------ None Fabricated ------------ Nothing Repaired ---------- Lgt. Cannon | 59% | -10/Materials Lgt. Cannon | 81% | -10/Materials Lgt. Armor Plating | 82% | -9/Materials Imp. Light Armor Plating | 61% | -9/Materials Rocket Launcher | 74% | -8/Materials Gatling Laser | 62% | -7/Factory Alien Tech Used ----------------- None Achievements -------------- Beloved Below Pwned Z1$+NX3F=JRE3_ZNQR Challenges ------------ None Game ------ Seed MicroCompanionNullifier Manual? 0 Play Time 11:49:22 Cumulative 143.3 hours Start 2025.09.19 @ 14:48:11 End 2025.09.26 @ 17:44:00 Sessions 32 Manual Loads 0 Difficulty Rogue Special Mode None Game No. 67 Rogue 63 Adventurer 1 Explorer 3 Win Type - Total 4 Types 3/1/0/0/0/0/0/0/0/0 Lore% 61 Gallery% 63 Achievement% 58 Wizard Run 0 Options --------- Layout 2 ASCII 0 Keyboard 1 Movement Numpad Keybinds 0 Fullscreen 1 Font 32/SmallcapsGlow Map View 50x44 Zoom Use 0% Tactical HUD 1 Map Filters NONE Filters NONE Steam 1 RUN: 4b7b987f-c16d-438d-a4f3-e1c32ad4643a